{"text_format":"3","workbook":"xlsx","n_sheets":4,"sheets":["BUDGETOVERZICHT TM VANDAAG","OVERZICHT MAANDELIJKSE ONKOSTEN","GESPECIFICEERDE KOSTEN","LIEFDADIGHEID EN SPONSORS"],"not_rendered":{"images":1,"defined_names":15},"read":"whole","date_system":"1900"}

{"sheet":"BUDGETOVERZICHT TM VANDAAG","index":0,"n_rows":16,"n_cols":7,"rows_kept":16,"merged":[[1,1,1,4]]}
[]
[null,"WERKELIJK VS. BUDGET JAAR TOT OP HEDEN",{"$nulls":3},"JAAR",{"$f":"YEAR(TODAY())","v":2019}]
[null,"G/L-code","Accounttitel","Werkelijk","Budget","Resterend €","Resterende %"]
[null,1000,"Reclame",{"$f":"SUMIF(OverzichtMaandelijkseOnkosten[G/L-code],YearToDateTable[[#This Row],[G/L-code]],OverzichtMaandelijkseOnkosten[Totaal])","v":{"v":0,"d":"€ 0.00"}},{"v":100000,"d":"€ 100,000.00"},{"$f":"IF(YearToDateTable[[#This Row],[Budget]]=\"\",\"\",YearToDateTable[[#This Row],[Budget]]-YearToDateTable[[#This Row],[Werkelijk]])","v":{"v":100000,"d":"€ 100,000.00"}},{"$f":"IFERROR(YearToDateTable[[#This Row],[Resterend €]]/YearToDateTable[[#This Row],[Budget]],\"\")","v":{"v":1,"d":"100.00%"}}]
[null,2000,"Kantoorapparatuur",{"$f":"SUMIF(OverzichtMaandelijkseOnkosten[G/L-code],YearToDateTable[[#This Row],[G/L-code]],OverzichtMaandelijkseOnkosten[Totaal])","v":{"v":0,"d":"€ 0.00"}},{"v":100000,"d":"€ 100,000.00"},{"$f":"IF(YearToDateTable[[#This Row],[Budget]]=\"\",\"\",YearToDateTable[[#This Row],[Budget]]-YearToDateTable[[#This Row],[Werkelijk]])","v":{"v":100000,"d":"€ 100,000.00"}},{"$f":"IFERROR(YearToDateTable[[#This Row],[Resterend €]]/YearToDateTable[[#This Row],[Budget]],\"\")","v":{"v":1,"d":"100.00%"}}]
[null,3000,"Printers",{"$f":"SUMIF(OverzichtMaandelijkseOnkosten[G/L-code],YearToDateTable[[#This Row],[G/L-code]],OverzichtMaandelijkseOnkosten[Totaal])","v":{"v":0,"d":"€ 0.00"}},{"v":100000,"d":"€ 100,000.00"},{"$f":"IF(YearToDateTable[[#This Row],[Budget]]=\"\",\"\",YearToDateTable[[#This Row],[Budget]]-YearToDateTable[[#This Row],[Werkelijk]])","v":{"v":100000,"d":"€ 100,000.00"}},{"$f":"IFERROR(YearToDateTable[[#This Row],[Resterend €]]/YearToDateTable[[#This Row],[Budget]],\"\")","v":{"v":1,"d":"100.00%"}}]
[null,4000,"Serverkosten",{"$f":"SUMIF(OverzichtMaandelijkseOnkosten[G/L-code],YearToDateTable[[#This Row],[G/L-code]],OverzichtMaandelijkseOnkosten[Totaal])","v":{"v":0,"d":"€ 0.00"}},{"v":100000,"d":"€ 100,000.00"},{"$f":"IF(YearToDateTable[[#This Row],[Budget]]=\"\",\"\",YearToDateTable[[#This Row],[Budget]]-YearToDateTable[[#This Row],[Werkelijk]])","v":{"v":100000,"d":"€ 100,000.00"}},{"$f":"IFERROR(YearToDateTable[[#This Row],[Resterend €]]/YearToDateTable[[#This Row],[Budget]],\"\")","v":{"v":1,"d":"100.00%"}}]
[null,5000,"Benodigdheden",{"$f":"SUMIF(OverzichtMaandelijkseOnkosten[G/L-code],YearToDateTable[[#This Row],[G/L-code]],OverzichtMaandelijkseOnkosten[Totaal])","v":{"v":0,"d":"€ 0.00"}},{"v":50000,"d":"€ 50,000.00"},{"$f":"IF(YearToDateTable[[#This Row],[Budget]]=\"\",\"\",YearToDateTable[[#This Row],[Budget]]-YearToDateTable[[#This Row],[Werkelijk]])","v":{"v":50000,"d":"€ 50,000.00"}},{"$f":"IFERROR(YearToDateTable[[#This Row],[Resterend €]]/YearToDateTable[[#This Row],[Budget]],\"\")","v":{"v":1,"d":"100.00%"}}]
[null,6000,"Klantuitgaven",{"$f":"SUMIF(OverzichtMaandelijkseOnkosten[G/L-code],YearToDateTable[[#This Row],[G/L-code]],OverzichtMaandelijkseOnkosten[Totaal])","v":{"v":0,"d":"€ 0.00"}},{"v":25000,"d":"€ 25,000.00"},{"$f":"IF(YearToDateTable[[#This Row],[Budget]]=\"\",\"\",YearToDateTable[[#This Row],[Budget]]-YearToDateTable[[#This Row],[Werkelijk]])","v":{"v":25000,"d":"€ 25,000.00"}},{"$f":"IFERROR(YearToDateTable[[#This Row],[Resterend €]]/YearToDateTable[[#This Row],[Budget]],\"\")","v":{"v":1,"d":"100.00%"}}]
[null,7000,"Computers",{"$f":"SUMIF(OverzichtMaandelijkseOnkosten[G/L-code],YearToDateTable[[#This Row],[G/L-code]],OverzichtMaandelijkseOnkosten[Totaal])","v":{"v":0,"d":"€ 0.00"}},{"v":75000,"d":"€ 75,000.00"},{"$f":"IF(YearToDateTable[[#This Row],[Budget]]=\"\",\"\",YearToDateTable[[#This Row],[Budget]]-YearToDateTable[[#This Row],[Werkelijk]])","v":{"v":75000,"d":"€ 75,000.00"}},{"$f":"IFERROR(YearToDateTable[[#This Row],[Resterend €]]/YearToDateTable[[#This Row],[Budget]],\"\")","v":{"v":1,"d":"100.00%"}}]
[null,8000,"Medisch zorgregeling",{"$f":"SUMIF(OverzichtMaandelijkseOnkosten[G/L-code],YearToDateTable[[#This Row],[G/L-code]],OverzichtMaandelijkseOnkosten[Totaal])","v":{"v":0,"d":"€ 0.00"}},{"v":65000,"d":"€ 65,000.00"},{"$f":"IF(YearToDateTable[[#This Row],[Budget]]=\"\",\"\",YearToDateTable[[#This Row],[Budget]]-YearToDateTable[[#This Row],[Werkelijk]])","v":{"v":65000,"d":"€ 65,000.00"}},{"$f":"IFERROR(YearToDateTable[[#This Row],[Resterend €]]/YearToDateTable[[#This Row],[Budget]],\"\")","v":{"v":1,"d":"100.00%"}}]
[null,9000,"Bouwkosten",{"$f":"SUMIF(OverzichtMaandelijkseOnkosten[G/L-code],YearToDateTable[[#This Row],[G/L-code]],OverzichtMaandelijkseOnkosten[Totaal])","v":{"v":0,"d":"€ 0.00"}},{"v":125000,"d":"€ 125,000.00"},{"$f":"IF(YearToDateTable[[#This Row],[Budget]]=\"\",\"\",YearToDateTable[[#This Row],[Budget]]-YearToDateTable[[#This Row],[Werkelijk]])","v":{"v":125000,"d":"€ 125,000.00"}},{"$f":"IFERROR(YearToDateTable[[#This Row],[Resterend €]]/YearToDateTable[[#This Row],[Budget]],\"\")","v":{"v":1,"d":"100.00%"}}]
[null,10000,"Marketing",{"$f":"SUMIF(OverzichtMaandelijkseOnkosten[G/L-code],YearToDateTable[[#This Row],[G/L-code]],OverzichtMaandelijkseOnkosten[Totaal])","v":{"v":0,"d":"€ 0.00"}},{"v":100000,"d":"€ 100,000.00"},{"$f":"IF(YearToDateTable[[#This Row],[Budget]]=\"\",\"\",YearToDateTable[[#This Row],[Budget]]-YearToDateTable[[#This Row],[Werkelijk]])","v":{"v":100000,"d":"€ 100,000.00"}},{"$f":"IFERROR(YearToDateTable[[#This Row],[Resterend €]]/YearToDateTable[[#This Row],[Budget]],\"\")","v":{"v":1,"d":"100.00%"}}]
[null,11000,"Liefdadigheid",{"$f":"SUMIF(OverzichtMaandelijkseOnkosten[G/L-code],YearToDateTable[[#This Row],[G/L-code]],OverzichtMaandelijkseOnkosten[Totaal])","v":{"v":0,"d":"€ 0.00"}},{"v":250000,"d":"€ 250,000.00"},{"$f":"IF(YearToDateTable[[#This Row],[Budget]]=\"\",\"\",YearToDateTable[[#This Row],[Budget]]-YearToDateTable[[#This Row],[Werkelijk]])","v":{"v":250000,"d":"€ 250,000.00"}},{"$f":"IFERROR(YearToDateTable[[#This Row],[Resterend €]]/YearToDateTable[[#This Row],[Budget]],\"\")","v":{"v":1,"d":"100.00%"}}]
[null,12000,"Sponsoring",{"$f":"SUMIF(OverzichtMaandelijkseOnkosten[G/L-code],YearToDateTable[[#This Row],[G/L-code]],OverzichtMaandelijkseOnkosten[Totaal])","v":{"v":0,"d":"€ 0.00"}},{"v":50000,"d":"€ 50,000.00"},{"$f":"IF(YearToDateTable[[#This Row],[Budget]]=\"\",\"\",YearToDateTable[[#This Row],[Budget]]-YearToDateTable[[#This Row],[Werkelijk]])","v":{"v":50000,"d":"€ 50,000.00"}},{"$f":"IFERROR(YearToDateTable[[#This Row],[Resterend €]]/YearToDateTable[[#This Row],[Budget]],\"\")","v":{"v":1,"d":"100.00%"}}]
[null,"Totaal",null,{"$f":"SUBTOTAL(109,YearToDateTable[Werkelijk])","v":{"v":0,"d":"€ 0.00"}},{"$f":"SUBTOTAL(109,YearToDateTable[Budget])","v":{"v":1140000,"d":"€ 1,140,000.00"}},{"$f":"SUBTOTAL(109,YearToDateTable[Resterend €])","v":{"v":1140000,"d":"€ 1,140,000.00"}},{"$f":"YearToDateTable[[#Totals],[Resterend €]]/YearToDateTable[[#Totals],[Budget]]","v":{"v":1,"d":"100.00%"}}]

{"sheet":"OVERZICHT MAANDELIJKSE ONKOSTEN","index":1,"n_rows":18,"n_cols":17,"rows_kept":18,"merged":[[1,1,1,16]]}
[]
[null,"OVERZICHT MAANDELIJKSE UITGAVEN"]
[null,"De slicer om gegevens te filteren op accounttitels staat in deze cel.",null,{"$f":"DATEVALUE(\"1-JAN\"&_JAAR)","v":{"v":43466,"d":"4346600.00%"}},{"$f":"DATEVALUE(\"1-FEB\"&_JAAR)","v":{"v":43497,"d":"4349700.00%"}},{"$f":"DATEVALUE(\"1-MAA\"&_JAAR)","v":{"v":43525,"d":"4352500.00%"}},{"$f":"DATEVALUE(\"1-APR\"&_JAAR)","v":{"v":43556,"d":"4355600.00%"}},{"$f":"DATEVALUE(\"1-MEI\"&_JAAR)","v":{"v":43586,"d":"4358600.00%"}},{"$f":"DATEVALUE(\"1-JUN\"&_JAAR)","v":{"v":43617,"d":"4361700.00%"}},{"$f":"DATEVALUE(\"1-JUL\"&_JAAR)","v":{"v":43647,"d":"4364700.00%"}},{"$f":"DATEVALUE(\"1-AUG\"&_JAAR)","v":{"v":43678,"d":"4367800.00%"}},{"$f":"DATEVALUE(\"1-SEP\"&_JAAR)","v":{"v":43709,"d":"4370900.00%"}},{"$f":"DATEVALUE(\"1-OKT\"&_JAAR)","v":{"v":43739,"d":"4373900.00%"}},{"$f":"DATEVALUE(\"1-NOV\"&_JAAR)","v":{"v":43770,"d":"4377000.00%"}},{"$f":"DATEVALUE(\"1-DEC\"&_JAAR)","v":{"v":43800,"d":"4380000.00%"}}]
[{"$nulls":3},{"$f":"EOMONTH(D3,0)","v":{"v":43496,"d":"4349600.00%"}},{"$f":"EOMONTH(E3,0)","v":{"v":43524,"d":"4352400.00%"}},{"$f":"EOMONTH(F3,0)","v":{"v":43555,"d":"4355500.00%"}},{"$f":"EOMONTH(G3,0)","v":{"v":43585,"d":"4358500.00%"}},{"$f":"EOMONTH(H3,0)","v":{"v":43616,"d":"4361600.00%"}},{"$f":"EOMONTH(I3,0)","v":{"v":43646,"d":"4364600.00%"}},{"v":43677,"d":"4367700.00%"},{"v":43708,"d":"4370800.00%"},{"v":43738,"d":"4373800.00%"},{"v":43769,"d":"4376900.00%"},{"v":43799,"d":"4379900.00%"},{"v":43830,"d":"4383000.00%"}]
[null,"G/L-code","Accounttitel","Januari","Februari","Maart","April","Mei","Juni","Juli","Augustus","September","Oktober","November","December","Totaal"," "]
[null,1000,"Reclame",{"$f":"SUMIFS(GespecificeerdeKosten[Controleer bedrag],GespecificeerdeKosten[G/L-code],OverzichtMaandelijkseOnkosten[[#This Row],[G/L-code]],GespecificeerdeKosten[Factuurdatum:],\">=\"&D$3,GespecificeerdeKosten[Factuurdatum:],\"<=\"&D$4)+SUMIFS(Anders[Controleer bedrag],Anders[G/L-code],OverzichtMaandelijkseOnkosten[[#This Row],[G/L-code]],Anders[Aanvraag datumcontrole gestart],\">=\"&DATEVALUE(\" 1 \"&OverzichtMaandelijkseOnkosten[[#Headers],[Januari]]&_JAAR),Anders[Aanvraag datumcontrole gestart],\"<=\"&D$4)","v":{"v":0,"d":"€ 0.00"}},{"$f":"SUMIFS(GespecificeerdeKosten[Controleer bedrag],GespecificeerdeKosten[G/L-code],OverzichtMaandelijkseOnkosten[[#This Row],[G/L-code]],GespecificeerdeKosten[Factuurdatum:],\">=\"&E$3,GespecificeerdeKosten[Factuurdatum:],\"<=\"&E$4)+SUMIFS(Anders[Controleer bedrag],Anders[G/L-code],OverzichtMaandelijkseOnkosten[[#This Row],[G/L-code]],Anders[Aanvraag datumcontrole gestart],\">=\"&DATEVALUE(\" 1 \"&OverzichtMaandelijkseOnkosten[[#Headers],[Februari]]&_JAAR),Anders[Aanvraag datumcontrole gestart],\"<=\"&E$4)","v":{"v":0,"d":"€ 0.00"}},{"$f":"SUMIFS(GespecificeerdeKosten[Controleer bedrag],GespecificeerdeKosten[G/L-code],OverzichtMaandelijkseOnkosten[[#This Row],[G/L-code]],GespecificeerdeKosten[Factuurdatum:],\">=\"&F$3,GespecificeerdeKosten[Factuurdatum:],\"<=\"&F$4)+SUMIFS(Anders[Controleer bedrag],Anders[G/L-code],OverzichtMaandelijkseOnkosten[[#This Row],[G/L-code]],Anders[Aanvraag datumcontrole gestart],\">=\"&DATEVALUE(\" 1 \"&OverzichtMaandelijkseOnkosten[[#Headers],[Maart]]&_JAAR),Anders[Aanvraag datumcontrole gestart],\"<=\"&F$4)","v":{"v":0,"d":"€ 0.00"}},{"$f":"SUMIFS(GespecificeerdeKosten[Controleer bedrag],GespecificeerdeKosten[G/L-code],OverzichtMaandelijkseOnkosten[[#This Row],[G/L-code]],GespecificeerdeKosten[Factuurdatum:],\">=\"&G$3,GespecificeerdeKosten[Factuurdatum:],\"<=\"&G$4)+SUMIFS(Anders[Controleer bedrag],Anders[G/L-code],OverzichtMaandelijkseOnkosten[[#This Row],[G/L-code]],Anders[Aanvraag datumcontrole gestart],\">=\"&DATEVALUE(\" 1 \"&OverzichtMaandelijkseOnkosten[[#Headers],[April]]&_JAAR),Anders[Aanvraag datumcontrole gestart],\"<=\"&G$4)","v":{"v":0,"d":"€ 0.00"}},{"$f":"SUMIFS(GespecificeerdeKosten[Controleer bedrag],GespecificeerdeKosten[G/L-code],OverzichtMaandelijkseOnkosten[[#This Row],[G/L-code]],GespecificeerdeKosten[Factuurdatum:],\">=\"&H$3,GespecificeerdeKosten[Factuurdatum:],\"<=\"&H$4)+SUMIFS(Anders[Controleer bedrag],Anders[G/L-code],OverzichtMaandelijkseOnkosten[[#This Row],[G/L-code]],Anders[Aanvraag datumcontrole gestart],\">=\"&DATEVALUE(\" 1 \"&OverzichtMaandelijkseOnkosten[[#Headers],[Mei]]&_JAAR),Anders[Aanvraag datumcontrole gestart],\"<=\"&H$4)","v":{"v":0,"d":"€ 0.00"}},{"$f":"SUMIFS(GespecificeerdeKosten[Controleer bedrag],GespecificeerdeKosten[G/L-code],OverzichtMaandelijkseOnkosten[[#This Row],[G/L-code]],GespecificeerdeKosten[Factuurdatum:],\">=\"&I$3,GespecificeerdeKosten[Factuurdatum:],\"<=\"&I$4)+SUMIFS(Anders[Controleer bedrag],Anders[G/L-code],OverzichtMaandelijkseOnkosten[[#This Row],[G/L-code]],Anders[Aanvraag datumcontrole gestart],\">=\"&DATEVALUE(\" 1 \"&OverzichtMaandelijkseOnkosten[[#Headers],[Juni]]&_JAAR),Anders[Aanvraag datumcontrole gestart],\"<=\"&I$4)","v":{"v":0,"d":"€ 0.00"}},{"$f":"SUMIFS(GespecificeerdeKosten[Controleer bedrag],GespecificeerdeKosten[G/L-code],OverzichtMaandelijkseOnkosten[[#This Row],[G/L-code]],GespecificeerdeKosten[Factuurdatum:],\">=\"&J$3,GespecificeerdeKosten[Factuurdatum:],\"<=\"&J$4)+SUMIFS(Anders[Controleer bedrag],Anders[G/L-code],OverzichtMaandelijkseOnkosten[[#This Row],[G/L-code]],Anders[Aanvraag datumcontrole gestart],\">=\"&DATEVALUE(\" 1 \"&OverzichtMaandelijkseOnkosten[[#Headers],[Juli]]&_JAAR),Anders[Aanvraag datumcontrole gestart],\"<=\"&J$4)","v":{"v":0,"d":"€ 0.00"}},{"$f":"SUMIFS(GespecificeerdeKosten[Controleer bedrag],GespecificeerdeKosten[G/L-code],OverzichtMaandelijkseOnkosten[[#This Row],[G/L-code]],GespecificeerdeKosten[Factuurdatum:],\">=\"&K$3,GespecificeerdeKosten[Factuurdatum:],\"<=\"&K$4)+SUMIFS(Anders[Controleer bedrag],Anders[G/L-code],OverzichtMaandelijkseOnkosten[[#This Row],[G/L-code]],Anders[Aanvraag datumcontrole gestart],\">=\"&DATEVALUE(\" 1 \"&OverzichtMaandelijkseOnkosten[[#Headers],[Augustus]]&_JAAR),Anders[Aanvraag datumcontrole gestart],\"<=\"&K$4)","v":{"v":0,"d":"€ 0.00"}},{"$f":"SUMIFS(GespecificeerdeKosten[Controleer bedrag],GespecificeerdeKosten[G/L-code],OverzichtMaandelijkseOnkosten[[#This Row],[G/L-code]],GespecificeerdeKosten[Factuurdatum:],\">=\"&L$3,GespecificeerdeKosten[Factuurdatum:],\"<=\"&L$4)+SUMIFS(Anders[Controleer bedrag],Anders[G/L-code],OverzichtMaandelijkseOnkosten[[#This Row],[G/L-code]],Anders[Aanvraag datumcontrole gestart],\">=\"&DATEVALUE(\" 1 \"&OverzichtMaandelijkseOnkosten[[#Headers],[September]]&_JAAR),Anders[Aanvraag datumcontrole gestart],\"<=\"&L$4)","v":{"v":0,"d":"€ 0.00"}},{"$f":"SUMIFS(GespecificeerdeKosten[Controleer bedrag],GespecificeerdeKosten[G/L-code],OverzichtMaandelijkseOnkosten[[#This Row],[G/L-code]],GespecificeerdeKosten[Factuurdatum:],\">=\"&M$3,GespecificeerdeKosten[Factuurdatum:],\"<=\"&M$4)+SUMIFS(Anders[Controleer bedrag],Anders[G/L-code],OverzichtMaandelijkseOnkosten[[#This Row],[G/L-code]],Anders[Aanvraag datumcontrole gestart],\">=\"&DATEVALUE(\" 1 \"&OverzichtMaandelijkseOnkosten[[#Headers],[Oktober]]&_JAAR),Anders[Aanvraag datumcontrole gestart],\"<=\"&M$4)","v":{"v":0,"d":"€ 0.00"}},{"$f":"SUMIFS(GespecificeerdeKosten[Controleer bedrag],GespecificeerdeKosten[G/L-code],OverzichtMaandelijkseOnkosten[[#This Row],[G/L-code]],GespecificeerdeKosten[Factuurdatum:],\">=\"&N$3,GespecificeerdeKosten[Factuurdatum:],\"<=\"&N$4)+SUMIFS(Anders[Controleer bedrag],Anders[G/L-code],OverzichtMaandelijkseOnkosten[[#This Row],[G/L-code]],Anders[Aanvraag datumcontrole gestart],\">=\"&DATEVALUE(\" 1 \"&OverzichtMaandelijkseOnkosten[[#Headers],[November]]&_JAAR),Anders[Aanvraag datumcontrole gestart],\"<=\"&N$4)","v":{"v":0,"d":"€ 0.00"}},{"$f":"SUMIFS(GespecificeerdeKosten[Controleer bedrag],GespecificeerdeKosten[G/L-code],OverzichtMaandelijkseOnkosten[[#This Row],[G/L-code]],GespecificeerdeKosten[Factuurdatum:],\">=\"&O$3,GespecificeerdeKosten[Factuurdatum:],\"<=\"&O$4)+SUMIFS(Anders[Controleer bedrag],Anders[G/L-code],OverzichtMaandelijkseOnkosten[[#This Row],[G/L-code]],Anders[Aanvraag datumcontrole gestart],\">=\"&DATEVALUE(\" 1 \"&OverzichtMaandelijkseOnkosten[[#Headers],[December]]&_JAAR),Anders[Aanvraag datumcontrole gestart],\"<=\"&O$4)","v":{"v":0,"d":"€ 0.00"}},{"$f":"SUM(OverzichtMaandelijkseOnkosten[[#This Row],[Januari]:[December]])","v":{"v":0,"d":"€ 0.00"}}]
[null,2000,"Kantoorapparatuur",{"$f":"SUMIFS(GespecificeerdeKosten[Controleer bedrag],GespecificeerdeKosten[G/L-code],OverzichtMaandelijkseOnkosten[[#This Row],[G/L-code]],GespecificeerdeKosten[Factuurdatum:],\">=\"&D$3,GespecificeerdeKosten[Factuurdatum:],\"<=\"&D$4)+SUMIFS(Anders[Controleer bedrag],Anders[G/L-code],OverzichtMaandelijkseOnkosten[[#This Row],[G/L-code]],Anders[Aanvraag datumcontrole gestart],\">=\"&DATEVALUE(\" 1 \"&OverzichtMaandelijkseOnkosten[[#Headers],[Januari]]&_JAAR),Anders[Aanvraag datumcontrole gestart],\"<=\"&D$4)","v":{"v":0,"d":"€ 0.00"}},{"$f":"SUMIFS(GespecificeerdeKosten[Controleer bedrag],GespecificeerdeKosten[G/L-code],OverzichtMaandelijkseOnkosten[[#This Row],[G/L-code]],GespecificeerdeKosten[Factuurdatum:],\">=\"&E$3,GespecificeerdeKosten[Factuurdatum:],\"<=\"&E$4)+SUMIFS(Anders[Controleer bedrag],Anders[G/L-code],OverzichtMaandelijkseOnkosten[[#This Row],[G/L-code]],Anders[Aanvraag datumcontrole gestart],\">=\"&DATEVALUE(\" 1 \"&OverzichtMaandelijkseOnkosten[[#Headers],[Februari]]&_JAAR),Anders[Aanvraag datumcontrole gestart],\"<=\"&E$4)","v":{"v":0,"d":"€ 0.00"}},{"$f":"SUMIFS(GespecificeerdeKosten[Controleer bedrag],GespecificeerdeKosten[G/L-code],OverzichtMaandelijkseOnkosten[[#This Row],[G/L-code]],GespecificeerdeKosten[Factuurdatum:],\">=\"&F$3,GespecificeerdeKosten[Factuurdatum:],\"<=\"&F$4)+SUMIFS(Anders[Controleer bedrag],Anders[G/L-code],OverzichtMaandelijkseOnkosten[[#This Row],[G/L-code]],Anders[Aanvraag datumcontrole gestart],\">=\"&DATEVALUE(\" 1 \"&OverzichtMaandelijkseOnkosten[[#Headers],[Maart]]&_JAAR),Anders[Aanvraag datumcontrole gestart],\"<=\"&F$4)","v":{"v":0,"d":"€ 0.00"}},{"$f":"SUMIFS(GespecificeerdeKosten[Controleer bedrag],GespecificeerdeKosten[G/L-code],OverzichtMaandelijkseOnkosten[[#This Row],[G/L-code]],GespecificeerdeKosten[Factuurdatum:],\">=\"&G$3,GespecificeerdeKosten[Factuurdatum:],\"<=\"&G$4)+SUMIFS(Anders[Controleer bedrag],Anders[G/L-code],OverzichtMaandelijkseOnkosten[[#This Row],[G/L-code]],Anders[Aanvraag datumcontrole gestart],\">=\"&DATEVALUE(\" 1 \"&OverzichtMaandelijkseOnkosten[[#Headers],[April]]&_JAAR),Anders[Aanvraag datumcontrole gestart],\"<=\"&G$4)","v":{"v":0,"d":"€ 0.00"}},{"$f":"SUMIFS(GespecificeerdeKosten[Controleer bedrag],GespecificeerdeKosten[G/L-code],OverzichtMaandelijkseOnkosten[[#This Row],[G/L-code]],GespecificeerdeKosten[Factuurdatum:],\">=\"&H$3,GespecificeerdeKosten[Factuurdatum:],\"<=\"&H$4)+SUMIFS(Anders[Controleer bedrag],Anders[G/L-code],OverzichtMaandelijkseOnkosten[[#This Row],[G/L-code]],Anders[Aanvraag datumcontrole gestart],\">=\"&DATEVALUE(\" 1 \"&OverzichtMaandelijkseOnkosten[[#Headers],[Mei]]&_JAAR),Anders[Aanvraag datumcontrole gestart],\"<=\"&H$4)","v":{"v":0,"d":"€ 0.00"}},{"$f":"SUMIFS(GespecificeerdeKosten[Controleer bedrag],GespecificeerdeKosten[G/L-code],OverzichtMaandelijkseOnkosten[[#This Row],[G/L-code]],GespecificeerdeKosten[Factuurdatum:],\">=\"&I$3,GespecificeerdeKosten[Factuurdatum:],\"<=\"&I$4)+SUMIFS(Anders[Controleer bedrag],Anders[G/L-code],OverzichtMaandelijkseOnkosten[[#This Row],[G/L-code]],Anders[Aanvraag datumcontrole gestart],\">=\"&DATEVALUE(\" 1 \"&OverzichtMaandelijkseOnkosten[[#Headers],[Juni]]&_JAAR),Anders[Aanvraag datumcontrole gestart],\"<=\"&I$4)","v":{"v":0,"d":"€ 0.00"}},{"$f":"SUMIFS(GespecificeerdeKosten[Controleer bedrag],GespecificeerdeKosten[G/L-code],OverzichtMaandelijkseOnkosten[[#This Row],[G/L-code]],GespecificeerdeKosten[Factuurdatum:],\">=\"&J$3,GespecificeerdeKosten[Factuurdatum:],\"<=\"&J$4)+SUMIFS(Anders[Controleer bedrag],Anders[G/L-code],OverzichtMaandelijkseOnkosten[[#This Row],[G/L-code]],Anders[Aanvraag datumcontrole gestart],\">=\"&DATEVALUE(\" 1 \"&OverzichtMaandelijkseOnkosten[[#Headers],[Juli]]&_JAAR),Anders[Aanvraag datumcontrole gestart],\"<=\"&J$4)","v":{"v":0,"d":"€ 0.00"}},{"$f":"SUMIFS(GespecificeerdeKosten[Controleer bedrag],GespecificeerdeKosten[G/L-code],OverzichtMaandelijkseOnkosten[[#This Row],[G/L-code]],GespecificeerdeKosten[Factuurdatum:],\">=\"&K$3,GespecificeerdeKosten[Factuurdatum:],\"<=\"&K$4)+SUMIFS(Anders[Controleer bedrag],Anders[G/L-code],OverzichtMaandelijkseOnkosten[[#This Row],[G/L-code]],Anders[Aanvraag datumcontrole gestart],\">=\"&DATEVALUE(\" 1 \"&OverzichtMaandelijkseOnkosten[[#Headers],[Augustus]]&_JAAR),Anders[Aanvraag datumcontrole gestart],\"<=\"&K$4)","v":{"v":0,"d":"€ 0.00"}},{"$f":"SUMIFS(GespecificeerdeKosten[Controleer bedrag],GespecificeerdeKosten[G/L-code],OverzichtMaandelijkseOnkosten[[#This Row],[G/L-code]],GespecificeerdeKosten[Factuurdatum:],\">=\"&L$3,GespecificeerdeKosten[Factuurdatum:],\"<=\"&L$4)+SUMIFS(Anders[Controleer bedrag],Anders[G/L-code],OverzichtMaandelijkseOnkosten[[#This Row],[G/L-code]],Anders[Aanvraag datumcontrole gestart],\">=\"&DATEVALUE(\" 1 \"&OverzichtMaandelijkseOnkosten[[#Headers],[September]]&_JAAR),Anders[Aanvraag datumcontrole gestart],\"<=\"&L$4)","v":{"v":0,"d":"€ 0.00"}},{"$f":"SUMIFS(GespecificeerdeKosten[Controleer bedrag],GespecificeerdeKosten[G/L-code],OverzichtMaandelijkseOnkosten[[#This Row],[G/L-code]],GespecificeerdeKosten[Factuurdatum:],\">=\"&M$3,GespecificeerdeKosten[Factuurdatum:],\"<=\"&M$4)+SUMIFS(Anders[Controleer bedrag],Anders[G/L-code],OverzichtMaandelijkseOnkosten[[#This Row],[G/L-code]],Anders[Aanvraag datumcontrole gestart],\">=\"&DATEVALUE(\" 1 \"&OverzichtMaandelijkseOnkosten[[#Headers],[Oktober]]&_JAAR),Anders[Aanvraag datumcontrole gestart],\"<=\"&M$4)","v":{"v":0,"d":"€ 0.00"}},{"$f":"SUMIFS(GespecificeerdeKosten[Controleer bedrag],GespecificeerdeKosten[G/L-code],OverzichtMaandelijkseOnkosten[[#This Row],[G/L-code]],GespecificeerdeKosten[Factuurdatum:],\">=\"&N$3,GespecificeerdeKosten[Factuurdatum:],\"<=\"&N$4)+SUMIFS(Anders[Controleer bedrag],Anders[G/L-code],OverzichtMaandelijkseOnkosten[[#This Row],[G/L-code]],Anders[Aanvraag datumcontrole gestart],\">=\"&DATEVALUE(\" 1 \"&OverzichtMaandelijkseOnkosten[[#Headers],[November]]&_JAAR),Anders[Aanvraag datumcontrole gestart],\"<=\"&N$4)","v":{"v":0,"d":"€ 0.00"}},{"$f":"SUMIFS(GespecificeerdeKosten[Controleer bedrag],GespecificeerdeKosten[G/L-code],OverzichtMaandelijkseOnkosten[[#This Row],[G/L-code]],GespecificeerdeKosten[Factuurdatum:],\">=\"&O$3,GespecificeerdeKosten[Factuurdatum:],\"<=\"&O$4)+SUMIFS(Anders[Controleer bedrag],Anders[G/L-code],OverzichtMaandelijkseOnkosten[[#This Row],[G/L-code]],Anders[Aanvraag datumcontrole gestart],\">=\"&DATEVALUE(\" 1 \"&OverzichtMaandelijkseOnkosten[[#Headers],[December]]&_JAAR),Anders[Aanvraag datumcontrole gestart],\"<=\"&O$4)","v":{"v":0,"d":"€ 0.00"}},{"$f":"SUM(OverzichtMaandelijkseOnkosten[[#This Row],[Januari]:[December]])","v":{"v":0,"d":"€ 0.00"}}]
[null,3000,"Printers",{"$f":"SUMIFS(GespecificeerdeKosten[Controleer bedrag],GespecificeerdeKosten[G/L-code],OverzichtMaandelijkseOnkosten[[#This Row],[G/L-code]],GespecificeerdeKosten[Factuurdatum:],\">=\"&D$3,GespecificeerdeKosten[Factuurdatum:],\"<=\"&D$4)+SUMIFS(Anders[Controleer bedrag],Anders[G/L-code],OverzichtMaandelijkseOnkosten[[#This Row],[G/L-code]],Anders[Aanvraag datumcontrole gestart],\">=\"&DATEVALUE(\" 1 \"&OverzichtMaandelijkseOnkosten[[#Headers],[Januari]]&_JAAR),Anders[Aanvraag datumcontrole gestart],\"<=\"&D$4)","v":{"v":0,"d":"€ 0.00"}},{"$f":"SUMIFS(GespecificeerdeKosten[Controleer bedrag],GespecificeerdeKosten[G/L-code],OverzichtMaandelijkseOnkosten[[#This Row],[G/L-code]],GespecificeerdeKosten[Factuurdatum:],\">=\"&E$3,GespecificeerdeKosten[Factuurdatum:],\"<=\"&E$4)+SUMIFS(Anders[Controleer bedrag],Anders[G/L-code],OverzichtMaandelijkseOnkosten[[#This Row],[G/L-code]],Anders[Aanvraag datumcontrole gestart],\">=\"&DATEVALUE(\" 1 \"&OverzichtMaandelijkseOnkosten[[#Headers],[Februari]]&_JAAR),Anders[Aanvraag datumcontrole gestart],\"<=\"&E$4)","v":{"v":0,"d":"€ 0.00"}},{"$f":"SUMIFS(GespecificeerdeKosten[Controleer bedrag],GespecificeerdeKosten[G/L-code],OverzichtMaandelijkseOnkosten[[#This Row],[G/L-code]],GespecificeerdeKosten[Factuurdatum:],\">=\"&F$3,GespecificeerdeKosten[Factuurdatum:],\"<=\"&F$4)+SUMIFS(Anders[Controleer bedrag],Anders[G/L-code],OverzichtMaandelijkseOnkosten[[#This Row],[G/L-code]],Anders[Aanvraag datumcontrole gestart],\">=\"&DATEVALUE(\" 1 \"&OverzichtMaandelijkseOnkosten[[#Headers],[Maart]]&_JAAR),Anders[Aanvraag datumcontrole gestart],\"<=\"&F$4)","v":{"v":0,"d":"€ 0.00"}},{"$f":"SUMIFS(GespecificeerdeKosten[Controleer bedrag],GespecificeerdeKosten[G/L-code],OverzichtMaandelijkseOnkosten[[#This Row],[G/L-code]],GespecificeerdeKosten[Factuurdatum:],\">=\"&G$3,GespecificeerdeKosten[Factuurdatum:],\"<=\"&G$4)+SUMIFS(Anders[Controleer bedrag],Anders[G/L-code],OverzichtMaandelijkseOnkosten[[#This Row],[G/L-code]],Anders[Aanvraag datumcontrole gestart],\">=\"&DATEVALUE(\" 1 \"&OverzichtMaandelijkseOnkosten[[#Headers],[April]]&_JAAR),Anders[Aanvraag datumcontrole gestart],\"<=\"&G$4)","v":{"v":0,"d":"€ 0.00"}},{"$f":"SUMIFS(GespecificeerdeKosten[Controleer bedrag],GespecificeerdeKosten[G/L-code],OverzichtMaandelijkseOnkosten[[#This Row],[G/L-code]],GespecificeerdeKosten[Factuurdatum:],\">=\"&H$3,GespecificeerdeKosten[Factuurdatum:],\"<=\"&H$4)+SUMIFS(Anders[Controleer bedrag],Anders[G/L-code],OverzichtMaandelijkseOnkosten[[#This Row],[G/L-code]],Anders[Aanvraag datumcontrole gestart],\">=\"&DATEVALUE(\" 1 \"&OverzichtMaandelijkseOnkosten[[#Headers],[Mei]]&_JAAR),Anders[Aanvraag datumcontrole gestart],\"<=\"&H$4)","v":{"v":0,"d":"€ 0.00"}},{"$f":"SUMIFS(GespecificeerdeKosten[Controleer bedrag],GespecificeerdeKosten[G/L-code],OverzichtMaandelijkseOnkosten[[#This Row],[G/L-code]],GespecificeerdeKosten[Factuurdatum:],\">=\"&I$3,GespecificeerdeKosten[Factuurdatum:],\"<=\"&I$4)+SUMIFS(Anders[Controleer bedrag],Anders[G/L-code],OverzichtMaandelijkseOnkosten[[#This Row],[G/L-code]],Anders[Aanvraag datumcontrole gestart],\">=\"&DATEVALUE(\" 1 \"&OverzichtMaandelijkseOnkosten[[#Headers],[Juni]]&_JAAR),Anders[Aanvraag datumcontrole gestart],\"<=\"&I$4)","v":{"v":0,"d":"€ 0.00"}},{"$f":"SUMIFS(GespecificeerdeKosten[Controleer bedrag],GespecificeerdeKosten[G/L-code],OverzichtMaandelijkseOnkosten[[#This Row],[G/L-code]],GespecificeerdeKosten[Factuurdatum:],\">=\"&J$3,GespecificeerdeKosten[Factuurdatum:],\"<=\"&J$4)+SUMIFS(Anders[Controleer bedrag],Anders[G/L-code],OverzichtMaandelijkseOnkosten[[#This Row],[G/L-code]],Anders[Aanvraag datumcontrole gestart],\">=\"&DATEVALUE(\" 1 \"&OverzichtMaandelijkseOnkosten[[#Headers],[Juli]]&_JAAR),Anders[Aanvraag datumcontrole gestart],\"<=\"&J$4)","v":{"v":0,"d":"€ 0.00"}},{"$f":"SUMIFS(GespecificeerdeKosten[Controleer bedrag],GespecificeerdeKosten[G/L-code],OverzichtMaandelijkseOnkosten[[#This Row],[G/L-code]],GespecificeerdeKosten[Factuurdatum:],\">=\"&K$3,GespecificeerdeKosten[Factuurdatum:],\"<=\"&K$4)+SUMIFS(Anders[Controleer bedrag],Anders[G/L-code],OverzichtMaandelijkseOnkosten[[#This Row],[G/L-code]],Anders[Aanvraag datumcontrole gestart],\">=\"&DATEVALUE(\" 1 \"&OverzichtMaandelijkseOnkosten[[#Headers],[Augustus]]&_JAAR),Anders[Aanvraag datumcontrole gestart],\"<=\"&K$4)","v":{"v":0,"d":"€ 0.00"}},{"$f":"SUMIFS(GespecificeerdeKosten[Controleer bedrag],GespecificeerdeKosten[G/L-code],OverzichtMaandelijkseOnkosten[[#This Row],[G/L-code]],GespecificeerdeKosten[Factuurdatum:],\">=\"&L$3,GespecificeerdeKosten[Factuurdatum:],\"<=\"&L$4)+SUMIFS(Anders[Controleer bedrag],Anders[G/L-code],OverzichtMaandelijkseOnkosten[[#This Row],[G/L-code]],Anders[Aanvraag datumcontrole gestart],\">=\"&DATEVALUE(\" 1 \"&OverzichtMaandelijkseOnkosten[[#Headers],[September]]&_JAAR),Anders[Aanvraag datumcontrole gestart],\"<=\"&L$4)","v":{"v":0,"d":"€ 0.00"}},{"$f":"SUMIFS(GespecificeerdeKosten[Controleer bedrag],GespecificeerdeKosten[G/L-code],OverzichtMaandelijkseOnkosten[[#This Row],[G/L-code]],GespecificeerdeKosten[Factuurdatum:],\">=\"&M$3,GespecificeerdeKosten[Factuurdatum:],\"<=\"&M$4)+SUMIFS(Anders[Controleer bedrag],Anders[G/L-code],OverzichtMaandelijkseOnkosten[[#This Row],[G/L-code]],Anders[Aanvraag datumcontrole gestart],\">=\"&DATEVALUE(\" 1 \"&OverzichtMaandelijkseOnkosten[[#Headers],[Oktober]]&_JAAR),Anders[Aanvraag datumcontrole gestart],\"<=\"&M$4)","v":{"v":0,"d":"€ 0.00"}},{"$f":"SUMIFS(GespecificeerdeKosten[Controleer bedrag],GespecificeerdeKosten[G/L-code],OverzichtMaandelijkseOnkosten[[#This Row],[G/L-code]],GespecificeerdeKosten[Factuurdatum:],\">=\"&N$3,GespecificeerdeKosten[Factuurdatum:],\"<=\"&N$4)+SUMIFS(Anders[Controleer bedrag],Anders[G/L-code],OverzichtMaandelijkseOnkosten[[#This Row],[G/L-code]],Anders[Aanvraag datumcontrole gestart],\">=\"&DATEVALUE(\" 1 \"&OverzichtMaandelijkseOnkosten[[#Headers],[November]]&_JAAR),Anders[Aanvraag datumcontrole gestart],\"<=\"&N$4)","v":{"v":0,"d":"€ 0.00"}},{"$f":"SUMIFS(GespecificeerdeKosten[Controleer bedrag],GespecificeerdeKosten[G/L-code],OverzichtMaandelijkseOnkosten[[#This Row],[G/L-code]],GespecificeerdeKosten[Factuurdatum:],\">=\"&O$3,GespecificeerdeKosten[Factuurdatum:],\"<=\"&O$4)+SUMIFS(Anders[Controleer bedrag],Anders[G/L-code],OverzichtMaandelijkseOnkosten[[#This Row],[G/L-code]],Anders[Aanvraag datumcontrole gestart],\">=\"&DATEVALUE(\" 1 \"&OverzichtMaandelijkseOnkosten[[#Headers],[December]]&_JAAR),Anders[Aanvraag datumcontrole gestart],\"<=\"&O$4)","v":{"v":0,"d":"€ 0.00"}},{"$f":"SUM(OverzichtMaandelijkseOnkosten[[#This Row],[Januari]:[December]])","v":{"v":0,"d":"€ 0.00"}}]
[null,4000,"Serverkosten",{"$f":"SUMIFS(GespecificeerdeKosten[Controleer bedrag],GespecificeerdeKosten[G/L-code],OverzichtMaandelijkseOnkosten[[#This Row],[G/L-code]],GespecificeerdeKosten[Factuurdatum:],\">=\"&D$3,GespecificeerdeKosten[Factuurdatum:],\"<=\"&D$4)+SUMIFS(Anders[Controleer bedrag],Anders[G/L-code],OverzichtMaandelijkseOnkosten[[#This Row],[G/L-code]],Anders[Aanvraag datumcontrole gestart],\">=\"&DATEVALUE(\" 1 \"&OverzichtMaandelijkseOnkosten[[#Headers],[Januari]]&_JAAR),Anders[Aanvraag datumcontrole gestart],\"<=\"&D$4)","v":{"v":0,"d":"€ 0.00"}},{"$f":"SUMIFS(GespecificeerdeKosten[Controleer bedrag],GespecificeerdeKosten[G/L-code],OverzichtMaandelijkseOnkosten[[#This Row],[G/L-code]],GespecificeerdeKosten[Factuurdatum:],\">=\"&E$3,GespecificeerdeKosten[Factuurdatum:],\"<=\"&E$4)+SUMIFS(Anders[Controleer bedrag],Anders[G/L-code],OverzichtMaandelijkseOnkosten[[#This Row],[G/L-code]],Anders[Aanvraag datumcontrole gestart],\">=\"&DATEVALUE(\" 1 \"&OverzichtMaandelijkseOnkosten[[#Headers],[Februari]]&_JAAR),Anders[Aanvraag datumcontrole gestart],\"<=\"&E$4)","v":{"v":0,"d":"€ 0.00"}},{"$f":"SUMIFS(GespecificeerdeKosten[Controleer bedrag],GespecificeerdeKosten[G/L-code],OverzichtMaandelijkseOnkosten[[#This Row],[G/L-code]],GespecificeerdeKosten[Factuurdatum:],\">=\"&F$3,GespecificeerdeKosten[Factuurdatum:],\"<=\"&F$4)+SUMIFS(Anders[Controleer bedrag],Anders[G/L-code],OverzichtMaandelijkseOnkosten[[#This Row],[G/L-code]],Anders[Aanvraag datumcontrole gestart],\">=\"&DATEVALUE(\" 1 \"&OverzichtMaandelijkseOnkosten[[#Headers],[Maart]]&_JAAR),Anders[Aanvraag datumcontrole gestart],\"<=\"&F$4)","v":{"v":0,"d":"€ 0.00"}},{"$f":"SUMIFS(GespecificeerdeKosten[Controleer bedrag],GespecificeerdeKosten[G/L-code],OverzichtMaandelijkseOnkosten[[#This Row],[G/L-code]],GespecificeerdeKosten[Factuurdatum:],\">=\"&G$3,GespecificeerdeKosten[Factuurdatum:],\"<=\"&G$4)+SUMIFS(Anders[Controleer bedrag],Anders[G/L-code],OverzichtMaandelijkseOnkosten[[#This Row],[G/L-code]],Anders[Aanvraag datumcontrole gestart],\">=\"&DATEVALUE(\" 1 \"&OverzichtMaandelijkseOnkosten[[#Headers],[April]]&_JAAR),Anders[Aanvraag datumcontrole gestart],\"<=\"&G$4)","v":{"v":0,"d":"€ 0.00"}},{"$f":"SUMIFS(GespecificeerdeKosten[Controleer bedrag],GespecificeerdeKosten[G/L-code],OverzichtMaandelijkseOnkosten[[#This Row],[G/L-code]],GespecificeerdeKosten[Factuurdatum:],\">=\"&H$3,GespecificeerdeKosten[Factuurdatum:],\"<=\"&H$4)+SUMIFS(Anders[Controleer bedrag],Anders[G/L-code],OverzichtMaandelijkseOnkosten[[#This Row],[G/L-code]],Anders[Aanvraag datumcontrole gestart],\">=\"&DATEVALUE(\" 1 \"&OverzichtMaandelijkseOnkosten[[#Headers],[Mei]]&_JAAR),Anders[Aanvraag datumcontrole gestart],\"<=\"&H$4)","v":{"v":0,"d":"€ 0.00"}},{"$f":"SUMIFS(GespecificeerdeKosten[Controleer bedrag],GespecificeerdeKosten[G/L-code],OverzichtMaandelijkseOnkosten[[#This Row],[G/L-code]],GespecificeerdeKosten[Factuurdatum:],\">=\"&I$3,GespecificeerdeKosten[Factuurdatum:],\"<=\"&I$4)+SUMIFS(Anders[Controleer bedrag],Anders[G/L-code],OverzichtMaandelijkseOnkosten[[#This Row],[G/L-code]],Anders[Aanvraag datumcontrole gestart],\">=\"&DATEVALUE(\" 1 \"&OverzichtMaandelijkseOnkosten[[#Headers],[Juni]]&_JAAR),Anders[Aanvraag datumcontrole gestart],\"<=\"&I$4)","v":{"v":0,"d":"€ 0.00"}},{"$f":"SUMIFS(GespecificeerdeKosten[Controleer bedrag],GespecificeerdeKosten[G/L-code],OverzichtMaandelijkseOnkosten[[#This Row],[G/L-code]],GespecificeerdeKosten[Factuurdatum:],\">=\"&J$3,GespecificeerdeKosten[Factuurdatum:],\"<=\"&J$4)+SUMIFS(Anders[Controleer bedrag],Anders[G/L-code],OverzichtMaandelijkseOnkosten[[#This Row],[G/L-code]],Anders[Aanvraag datumcontrole gestart],\">=\"&DATEVALUE(\" 1 \"&OverzichtMaandelijkseOnkosten[[#Headers],[Juli]]&_JAAR),Anders[Aanvraag datumcontrole gestart],\"<=\"&J$4)","v":{"v":0,"d":"€ 0.00"}},{"$f":"SUMIFS(GespecificeerdeKosten[Controleer bedrag],GespecificeerdeKosten[G/L-code],OverzichtMaandelijkseOnkosten[[#This Row],[G/L-code]],GespecificeerdeKosten[Factuurdatum:],\">=\"&K$3,GespecificeerdeKosten[Factuurdatum:],\"<=\"&K$4)+SUMIFS(Anders[Controleer bedrag],Anders[G/L-code],OverzichtMaandelijkseOnkosten[[#This Row],[G/L-code]],Anders[Aanvraag datumcontrole gestart],\">=\"&DATEVALUE(\" 1 \"&OverzichtMaandelijkseOnkosten[[#Headers],[Augustus]]&_JAAR),Anders[Aanvraag datumcontrole gestart],\"<=\"&K$4)","v":{"v":0,"d":"€ 0.00"}},{"$f":"SUMIFS(GespecificeerdeKosten[Controleer bedrag],GespecificeerdeKosten[G/L-code],OverzichtMaandelijkseOnkosten[[#This Row],[G/L-code]],GespecificeerdeKosten[Factuurdatum:],\">=\"&L$3,GespecificeerdeKosten[Factuurdatum:],\"<=\"&L$4)+SUMIFS(Anders[Controleer bedrag],Anders[G/L-code],OverzichtMaandelijkseOnkosten[[#This Row],[G/L-code]],Anders[Aanvraag datumcontrole gestart],\">=\"&DATEVALUE(\" 1 \"&OverzichtMaandelijkseOnkosten[[#Headers],[September]]&_JAAR),Anders[Aanvraag datumcontrole gestart],\"<=\"&L$4)","v":{"v":0,"d":"€ 0.00"}},{"$f":"SUMIFS(GespecificeerdeKosten[Controleer bedrag],GespecificeerdeKosten[G/L-code],OverzichtMaandelijkseOnkosten[[#This Row],[G/L-code]],GespecificeerdeKosten[Factuurdatum:],\">=\"&M$3,GespecificeerdeKosten[Factuurdatum:],\"<=\"&M$4)+SUMIFS(Anders[Controleer bedrag],Anders[G/L-code],OverzichtMaandelijkseOnkosten[[#This Row],[G/L-code]],Anders[Aanvraag datumcontrole gestart],\">=\"&DATEVALUE(\" 1 \"&OverzichtMaandelijkseOnkosten[[#Headers],[Oktober]]&_JAAR),Anders[Aanvraag datumcontrole gestart],\"<=\"&M$4)","v":{"v":0,"d":"€ 0.00"}},{"$f":"SUMIFS(GespecificeerdeKosten[Controleer bedrag],GespecificeerdeKosten[G/L-code],OverzichtMaandelijkseOnkosten[[#This Row],[G/L-code]],GespecificeerdeKosten[Factuurdatum:],\">=\"&N$3,GespecificeerdeKosten[Factuurdatum:],\"<=\"&N$4)+SUMIFS(Anders[Controleer bedrag],Anders[G/L-code],OverzichtMaandelijkseOnkosten[[#This Row],[G/L-code]],Anders[Aanvraag datumcontrole gestart],\">=\"&DATEVALUE(\" 1 \"&OverzichtMaandelijkseOnkosten[[#Headers],[November]]&_JAAR),Anders[Aanvraag datumcontrole gestart],\"<=\"&N$4)","v":{"v":0,"d":"€ 0.00"}},{"$f":"SUMIFS(GespecificeerdeKosten[Controleer bedrag],GespecificeerdeKosten[G/L-code],OverzichtMaandelijkseOnkosten[[#This Row],[G/L-code]],GespecificeerdeKosten[Factuurdatum:],\">=\"&O$3,GespecificeerdeKosten[Factuurdatum:],\"<=\"&O$4)+SUMIFS(Anders[Controleer bedrag],Anders[G/L-code],OverzichtMaandelijkseOnkosten[[#This Row],[G/L-code]],Anders[Aanvraag datumcontrole gestart],\">=\"&DATEVALUE(\" 1 \"&OverzichtMaandelijkseOnkosten[[#Headers],[December]]&_JAAR),Anders[Aanvraag datumcontrole gestart],\"<=\"&O$4)","v":{"v":0,"d":"€ 0.00"}},{"$f":"SUM(OverzichtMaandelijkseOnkosten[[#This Row],[Januari]:[December]])","v":{"v":0,"d":"€ 0.00"}}]
[null,5000,"Benodigdheden",{"$f":"SUMIFS(GespecificeerdeKosten[Controleer bedrag],GespecificeerdeKosten[G/L-code],OverzichtMaandelijkseOnkosten[[#This Row],[G/L-code]],GespecificeerdeKosten[Factuurdatum:],\">=\"&D$3,GespecificeerdeKosten[Factuurdatum:],\"<=\"&D$4)+SUMIFS(Anders[Controleer bedrag],Anders[G/L-code],OverzichtMaandelijkseOnkosten[[#This Row],[G/L-code]],Anders[Aanvraag datumcontrole gestart],\">=\"&DATEVALUE(\" 1 \"&OverzichtMaandelijkseOnkosten[[#Headers],[Januari]]&_JAAR),Anders[Aanvraag datumcontrole gestart],\"<=\"&D$4)","v":{"v":0,"d":"€ 0.00"}},{"$f":"SUMIFS(GespecificeerdeKosten[Controleer bedrag],GespecificeerdeKosten[G/L-code],OverzichtMaandelijkseOnkosten[[#This Row],[G/L-code]],GespecificeerdeKosten[Factuurdatum:],\">=\"&E$3,GespecificeerdeKosten[Factuurdatum:],\"<=\"&E$4)+SUMIFS(Anders[Controleer bedrag],Anders[G/L-code],OverzichtMaandelijkseOnkosten[[#This Row],[G/L-code]],Anders[Aanvraag datumcontrole gestart],\">=\"&DATEVALUE(\" 1 \"&OverzichtMaandelijkseOnkosten[[#Headers],[Februari]]&_JAAR),Anders[Aanvraag datumcontrole gestart],\"<=\"&E$4)","v":{"v":0,"d":"€ 0.00"}},{"$f":"SUMIFS(GespecificeerdeKosten[Controleer bedrag],GespecificeerdeKosten[G/L-code],OverzichtMaandelijkseOnkosten[[#This Row],[G/L-code]],GespecificeerdeKosten[Factuurdatum:],\">=\"&F$3,GespecificeerdeKosten[Factuurdatum:],\"<=\"&F$4)+SUMIFS(Anders[Controleer bedrag],Anders[G/L-code],OverzichtMaandelijkseOnkosten[[#This Row],[G/L-code]],Anders[Aanvraag datumcontrole gestart],\">=\"&DATEVALUE(\" 1 \"&OverzichtMaandelijkseOnkosten[[#Headers],[Maart]]&_JAAR),Anders[Aanvraag datumcontrole gestart],\"<=\"&F$4)","v":{"v":0,"d":"€ 0.00"}},{"$f":"SUMIFS(GespecificeerdeKosten[Controleer bedrag],GespecificeerdeKosten[G/L-code],OverzichtMaandelijkseOnkosten[[#This Row],[G/L-code]],GespecificeerdeKosten[Factuurdatum:],\">=\"&G$3,GespecificeerdeKosten[Factuurdatum:],\"<=\"&G$4)+SUMIFS(Anders[Controleer bedrag],Anders[G/L-code],OverzichtMaandelijkseOnkosten[[#This Row],[G/L-code]],Anders[Aanvraag datumcontrole gestart],\">=\"&DATEVALUE(\" 1 \"&OverzichtMaandelijkseOnkosten[[#Headers],[April]]&_JAAR),Anders[Aanvraag datumcontrole gestart],\"<=\"&G$4)","v":{"v":0,"d":"€ 0.00"}},{"$f":"SUMIFS(GespecificeerdeKosten[Controleer bedrag],GespecificeerdeKosten[G/L-code],OverzichtMaandelijkseOnkosten[[#This Row],[G/L-code]],GespecificeerdeKosten[Factuurdatum:],\">=\"&H$3,GespecificeerdeKosten[Factuurdatum:],\"<=\"&H$4)+SUMIFS(Anders[Controleer bedrag],Anders[G/L-code],OverzichtMaandelijkseOnkosten[[#This Row],[G/L-code]],Anders[Aanvraag datumcontrole gestart],\">=\"&DATEVALUE(\" 1 \"&OverzichtMaandelijkseOnkosten[[#Headers],[Mei]]&_JAAR),Anders[Aanvraag datumcontrole gestart],\"<=\"&H$4)","v":{"v":0,"d":"€ 0.00"}},{"$f":"SUMIFS(GespecificeerdeKosten[Controleer bedrag],GespecificeerdeKosten[G/L-code],OverzichtMaandelijkseOnkosten[[#This Row],[G/L-code]],GespecificeerdeKosten[Factuurdatum:],\">=\"&I$3,GespecificeerdeKosten[Factuurdatum:],\"<=\"&I$4)+SUMIFS(Anders[Controleer bedrag],Anders[G/L-code],OverzichtMaandelijkseOnkosten[[#This Row],[G/L-code]],Anders[Aanvraag datumcontrole gestart],\">=\"&DATEVALUE(\" 1 \"&OverzichtMaandelijkseOnkosten[[#Headers],[Juni]]&_JAAR),Anders[Aanvraag datumcontrole gestart],\"<=\"&I$4)","v":{"v":0,"d":"€ 0.00"}},{"$f":"SUMIFS(GespecificeerdeKosten[Controleer bedrag],GespecificeerdeKosten[G/L-code],OverzichtMaandelijkseOnkosten[[#This Row],[G/L-code]],GespecificeerdeKosten[Factuurdatum:],\">=\"&J$3,GespecificeerdeKosten[Factuurdatum:],\"<=\"&J$4)+SUMIFS(Anders[Controleer bedrag],Anders[G/L-code],OverzichtMaandelijkseOnkosten[[#This Row],[G/L-code]],Anders[Aanvraag datumcontrole gestart],\">=\"&DATEVALUE(\" 1 \"&OverzichtMaandelijkseOnkosten[[#Headers],[Juli]]&_JAAR),Anders[Aanvraag datumcontrole gestart],\"<=\"&J$4)","v":{"v":0,"d":"€ 0.00"}},{"$f":"SUMIFS(GespecificeerdeKosten[Controleer bedrag],GespecificeerdeKosten[G/L-code],OverzichtMaandelijkseOnkosten[[#This Row],[G/L-code]],GespecificeerdeKosten[Factuurdatum:],\">=\"&K$3,GespecificeerdeKosten[Factuurdatum:],\"<=\"&K$4)+SUMIFS(Anders[Controleer bedrag],Anders[G/L-code],OverzichtMaandelijkseOnkosten[[#This Row],[G/L-code]],Anders[Aanvraag datumcontrole gestart],\">=\"&DATEVALUE(\" 1 \"&OverzichtMaandelijkseOnkosten[[#Headers],[Augustus]]&_JAAR),Anders[Aanvraag datumcontrole gestart],\"<=\"&K$4)","v":{"v":0,"d":"€ 0.00"}},{"$f":"SUMIFS(GespecificeerdeKosten[Controleer bedrag],GespecificeerdeKosten[G/L-code],OverzichtMaandelijkseOnkosten[[#This Row],[G/L-code]],GespecificeerdeKosten[Factuurdatum:],\">=\"&L$3,GespecificeerdeKosten[Factuurdatum:],\"<=\"&L$4)+SUMIFS(Anders[Controleer bedrag],Anders[G/L-code],OverzichtMaandelijkseOnkosten[[#This Row],[G/L-code]],Anders[Aanvraag datumcontrole gestart],\">=\"&DATEVALUE(\" 1 \"&OverzichtMaandelijkseOnkosten[[#Headers],[September]]&_JAAR),Anders[Aanvraag datumcontrole gestart],\"<=\"&L$4)","v":{"v":0,"d":"€ 0.00"}},{"$f":"SUMIFS(GespecificeerdeKosten[Controleer bedrag],GespecificeerdeKosten[G/L-code],OverzichtMaandelijkseOnkosten[[#This Row],[G/L-code]],GespecificeerdeKosten[Factuurdatum:],\">=\"&M$3,GespecificeerdeKosten[Factuurdatum:],\"<=\"&M$4)+SUMIFS(Anders[Controleer bedrag],Anders[G/L-code],OverzichtMaandelijkseOnkosten[[#This Row],[G/L-code]],Anders[Aanvraag datumcontrole gestart],\">=\"&DATEVALUE(\" 1 \"&OverzichtMaandelijkseOnkosten[[#Headers],[Oktober]]&_JAAR),Anders[Aanvraag datumcontrole gestart],\"<=\"&M$4)","v":{"v":0,"d":"€ 0.00"}},{"$f":"SUMIFS(GespecificeerdeKosten[Controleer bedrag],GespecificeerdeKosten[G/L-code],OverzichtMaandelijkseOnkosten[[#This Row],[G/L-code]],GespecificeerdeKosten[Factuurdatum:],\">=\"&N$3,GespecificeerdeKosten[Factuurdatum:],\"<=\"&N$4)+SUMIFS(Anders[Controleer bedrag],Anders[G/L-code],OverzichtMaandelijkseOnkosten[[#This Row],[G/L-code]],Anders[Aanvraag datumcontrole gestart],\">=\"&DATEVALUE(\" 1 \"&OverzichtMaandelijkseOnkosten[[#Headers],[November]]&_JAAR),Anders[Aanvraag datumcontrole gestart],\"<=\"&N$4)","v":{"v":0,"d":"€ 0.00"}},{"$f":"SUMIFS(GespecificeerdeKosten[Controleer bedrag],GespecificeerdeKosten[G/L-code],OverzichtMaandelijkseOnkosten[[#This Row],[G/L-code]],GespecificeerdeKosten[Factuurdatum:],\">=\"&O$3,GespecificeerdeKosten[Factuurdatum:],\"<=\"&O$4)+SUMIFS(Anders[Controleer bedrag],Anders[G/L-code],OverzichtMaandelijkseOnkosten[[#This Row],[G/L-code]],Anders[Aanvraag datumcontrole gestart],\">=\"&DATEVALUE(\" 1 \"&OverzichtMaandelijkseOnkosten[[#Headers],[December]]&_JAAR),Anders[Aanvraag datumcontrole gestart],\"<=\"&O$4)","v":{"v":0,"d":"€ 0.00"}},{"$f":"SUM(OverzichtMaandelijkseOnkosten[[#This Row],[Januari]:[December]])","v":{"v":0,"d":"€ 0.00"}}]
[null,6000,"Klantuitgaven",{"$f":"SUMIFS(GespecificeerdeKosten[Controleer bedrag],GespecificeerdeKosten[G/L-code],OverzichtMaandelijkseOnkosten[[#This Row],[G/L-code]],GespecificeerdeKosten[Factuurdatum:],\">=\"&D$3,GespecificeerdeKosten[Factuurdatum:],\"<=\"&D$4)+SUMIFS(Anders[Controleer bedrag],Anders[G/L-code],OverzichtMaandelijkseOnkosten[[#This Row],[G/L-code]],Anders[Aanvraag datumcontrole gestart],\">=\"&DATEVALUE(\" 1 \"&OverzichtMaandelijkseOnkosten[[#Headers],[Januari]]&_JAAR),Anders[Aanvraag datumcontrole gestart],\"<=\"&D$4)","v":{"v":0,"d":"€ 0.00"}},{"$f":"SUMIFS(GespecificeerdeKosten[Controleer bedrag],GespecificeerdeKosten[G/L-code],OverzichtMaandelijkseOnkosten[[#This Row],[G/L-code]],GespecificeerdeKosten[Factuurdatum:],\">=\"&E$3,GespecificeerdeKosten[Factuurdatum:],\"<=\"&E$4)+SUMIFS(Anders[Controleer bedrag],Anders[G/L-code],OverzichtMaandelijkseOnkosten[[#This Row],[G/L-code]],Anders[Aanvraag datumcontrole gestart],\">=\"&DATEVALUE(\" 1 \"&OverzichtMaandelijkseOnkosten[[#Headers],[Februari]]&_JAAR),Anders[Aanvraag datumcontrole gestart],\"<=\"&E$4)","v":{"v":0,"d":"€ 0.00"}},{"$f":"SUMIFS(GespecificeerdeKosten[Controleer bedrag],GespecificeerdeKosten[G/L-code],OverzichtMaandelijkseOnkosten[[#This Row],[G/L-code]],GespecificeerdeKosten[Factuurdatum:],\">=\"&F$3,GespecificeerdeKosten[Factuurdatum:],\"<=\"&F$4)+SUMIFS(Anders[Controleer bedrag],Anders[G/L-code],OverzichtMaandelijkseOnkosten[[#This Row],[G/L-code]],Anders[Aanvraag datumcontrole gestart],\">=\"&DATEVALUE(\" 1 \"&OverzichtMaandelijkseOnkosten[[#Headers],[Maart]]&_JAAR),Anders[Aanvraag datumcontrole gestart],\"<=\"&F$4)","v":{"v":0,"d":"€ 0.00"}},{"$f":"SUMIFS(GespecificeerdeKosten[Controleer bedrag],GespecificeerdeKosten[G/L-code],OverzichtMaandelijkseOnkosten[[#This Row],[G/L-code]],GespecificeerdeKosten[Factuurdatum:],\">=\"&G$3,GespecificeerdeKosten[Factuurdatum:],\"<=\"&G$4)+SUMIFS(Anders[Controleer bedrag],Anders[G/L-code],OverzichtMaandelijkseOnkosten[[#This Row],[G/L-code]],Anders[Aanvraag datumcontrole gestart],\">=\"&DATEVALUE(\" 1 \"&OverzichtMaandelijkseOnkosten[[#Headers],[April]]&_JAAR),Anders[Aanvraag datumcontrole gestart],\"<=\"&G$4)","v":{"v":0,"d":"€ 0.00"}},{"$f":"SUMIFS(GespecificeerdeKosten[Controleer bedrag],GespecificeerdeKosten[G/L-code],OverzichtMaandelijkseOnkosten[[#This Row],[G/L-code]],GespecificeerdeKosten[Factuurdatum:],\">=\"&H$3,GespecificeerdeKosten[Factuurdatum:],\"<=\"&H$4)+SUMIFS(Anders[Controleer bedrag],Anders[G/L-code],OverzichtMaandelijkseOnkosten[[#This Row],[G/L-code]],Anders[Aanvraag datumcontrole gestart],\">=\"&DATEVALUE(\" 1 \"&OverzichtMaandelijkseOnkosten[[#Headers],[Mei]]&_JAAR),Anders[Aanvraag datumcontrole gestart],\"<=\"&H$4)","v":{"v":0,"d":"€ 0.00"}},{"$f":"SUMIFS(GespecificeerdeKosten[Controleer bedrag],GespecificeerdeKosten[G/L-code],OverzichtMaandelijkseOnkosten[[#This Row],[G/L-code]],GespecificeerdeKosten[Factuurdatum:],\">=\"&I$3,GespecificeerdeKosten[Factuurdatum:],\"<=\"&I$4)+SUMIFS(Anders[Controleer bedrag],Anders[G/L-code],OverzichtMaandelijkseOnkosten[[#This Row],[G/L-code]],Anders[Aanvraag datumcontrole gestart],\">=\"&DATEVALUE(\" 1 \"&OverzichtMaandelijkseOnkosten[[#Headers],[Juni]]&_JAAR),Anders[Aanvraag datumcontrole gestart],\"<=\"&I$4)","v":{"v":0,"d":"€ 0.00"}},{"$f":"SUMIFS(GespecificeerdeKosten[Controleer bedrag],GespecificeerdeKosten[G/L-code],OverzichtMaandelijkseOnkosten[[#This Row],[G/L-code]],GespecificeerdeKosten[Factuurdatum:],\">=\"&J$3,GespecificeerdeKosten[Factuurdatum:],\"<=\"&J$4)+SUMIFS(Anders[Controleer bedrag],Anders[G/L-code],OverzichtMaandelijkseOnkosten[[#This Row],[G/L-code]],Anders[Aanvraag datumcontrole gestart],\">=\"&DATEVALUE(\" 1 \"&OverzichtMaandelijkseOnkosten[[#Headers],[Juli]]&_JAAR),Anders[Aanvraag datumcontrole gestart],\"<=\"&J$4)","v":{"v":0,"d":"€ 0.00"}},{"$f":"SUMIFS(GespecificeerdeKosten[Controleer bedrag],GespecificeerdeKosten[G/L-code],OverzichtMaandelijkseOnkosten[[#This Row],[G/L-code]],GespecificeerdeKosten[Factuurdatum:],\">=\"&K$3,GespecificeerdeKosten[Factuurdatum:],\"<=\"&K$4)+SUMIFS(Anders[Controleer bedrag],Anders[G/L-code],OverzichtMaandelijkseOnkosten[[#This Row],[G/L-code]],Anders[Aanvraag datumcontrole gestart],\">=\"&DATEVALUE(\" 1 \"&OverzichtMaandelijkseOnkosten[[#Headers],[Augustus]]&_JAAR),Anders[Aanvraag datumcontrole gestart],\"<=\"&K$4)","v":{"v":0,"d":"€ 0.00"}},{"$f":"SUMIFS(GespecificeerdeKosten[Controleer bedrag],GespecificeerdeKosten[G/L-code],OverzichtMaandelijkseOnkosten[[#This Row],[G/L-code]],GespecificeerdeKosten[Factuurdatum:],\">=\"&L$3,GespecificeerdeKosten[Factuurdatum:],\"<=\"&L$4)+SUMIFS(Anders[Controleer bedrag],Anders[G/L-code],OverzichtMaandelijkseOnkosten[[#This Row],[G/L-code]],Anders[Aanvraag datumcontrole gestart],\">=\"&DATEVALUE(\" 1 \"&OverzichtMaandelijkseOnkosten[[#Headers],[September]]&_JAAR),Anders[Aanvraag datumcontrole gestart],\"<=\"&L$4)","v":{"v":0,"d":"€ 0.00"}},{"$f":"SUMIFS(GespecificeerdeKosten[Controleer bedrag],GespecificeerdeKosten[G/L-code],OverzichtMaandelijkseOnkosten[[#This Row],[G/L-code]],GespecificeerdeKosten[Factuurdatum:],\">=\"&M$3,GespecificeerdeKosten[Factuurdatum:],\"<=\"&M$4)+SUMIFS(Anders[Controleer bedrag],Anders[G/L-code],OverzichtMaandelijkseOnkosten[[#This Row],[G/L-code]],Anders[Aanvraag datumcontrole gestart],\">=\"&DATEVALUE(\" 1 \"&OverzichtMaandelijkseOnkosten[[#Headers],[Oktober]]&_JAAR),Anders[Aanvraag datumcontrole gestart],\"<=\"&M$4)","v":{"v":0,"d":"€ 0.00"}},{"$f":"SUMIFS(GespecificeerdeKosten[Controleer bedrag],GespecificeerdeKosten[G/L-code],OverzichtMaandelijkseOnkosten[[#This Row],[G/L-code]],GespecificeerdeKosten[Factuurdatum:],\">=\"&N$3,GespecificeerdeKosten[Factuurdatum:],\"<=\"&N$4)+SUMIFS(Anders[Controleer bedrag],Anders[G/L-code],OverzichtMaandelijkseOnkosten[[#This Row],[G/L-code]],Anders[Aanvraag datumcontrole gestart],\">=\"&DATEVALUE(\" 1 \"&OverzichtMaandelijkseOnkosten[[#Headers],[November]]&_JAAR),Anders[Aanvraag datumcontrole gestart],\"<=\"&N$4)","v":{"v":0,"d":"€ 0.00"}},{"$f":"SUMIFS(GespecificeerdeKosten[Controleer bedrag],GespecificeerdeKosten[G/L-code],OverzichtMaandelijkseOnkosten[[#This Row],[G/L-code]],GespecificeerdeKosten[Factuurdatum:],\">=\"&O$3,GespecificeerdeKosten[Factuurdatum:],\"<=\"&O$4)+SUMIFS(Anders[Controleer bedrag],Anders[G/L-code],OverzichtMaandelijkseOnkosten[[#This Row],[G/L-code]],Anders[Aanvraag datumcontrole gestart],\">=\"&DATEVALUE(\" 1 \"&OverzichtMaandelijkseOnkosten[[#Headers],[December]]&_JAAR),Anders[Aanvraag datumcontrole gestart],\"<=\"&O$4)","v":{"v":0,"d":"€ 0.00"}},{"$f":"SUM(OverzichtMaandelijkseOnkosten[[#This Row],[Januari]:[December]])","v":{"v":0,"d":"€ 0.00"}}]
[null,7000,"Computers",{"$f":"SUMIFS(GespecificeerdeKosten[Controleer bedrag],GespecificeerdeKosten[G/L-code],OverzichtMaandelijkseOnkosten[[#This Row],[G/L-code]],GespecificeerdeKosten[Factuurdatum:],\">=\"&D$3,GespecificeerdeKosten[Factuurdatum:],\"<=\"&D$4)+SUMIFS(Anders[Controleer bedrag],Anders[G/L-code],OverzichtMaandelijkseOnkosten[[#This Row],[G/L-code]],Anders[Aanvraag datumcontrole gestart],\">=\"&DATEVALUE(\" 1 \"&OverzichtMaandelijkseOnkosten[[#Headers],[Januari]]&_JAAR),Anders[Aanvraag datumcontrole gestart],\"<=\"&D$4)","v":{"v":0,"d":"€ 0.00"}},{"$f":"SUMIFS(GespecificeerdeKosten[Controleer bedrag],GespecificeerdeKosten[G/L-code],OverzichtMaandelijkseOnkosten[[#This Row],[G/L-code]],GespecificeerdeKosten[Factuurdatum:],\">=\"&E$3,GespecificeerdeKosten[Factuurdatum:],\"<=\"&E$4)+SUMIFS(Anders[Controleer bedrag],Anders[G/L-code],OverzichtMaandelijkseOnkosten[[#This Row],[G/L-code]],Anders[Aanvraag datumcontrole gestart],\">=\"&DATEVALUE(\" 1 \"&OverzichtMaandelijkseOnkosten[[#Headers],[Februari]]&_JAAR),Anders[Aanvraag datumcontrole gestart],\"<=\"&E$4)","v":{"v":0,"d":"€ 0.00"}},{"$f":"SUMIFS(GespecificeerdeKosten[Controleer bedrag],GespecificeerdeKosten[G/L-code],OverzichtMaandelijkseOnkosten[[#This Row],[G/L-code]],GespecificeerdeKosten[Factuurdatum:],\">=\"&F$3,GespecificeerdeKosten[Factuurdatum:],\"<=\"&F$4)+SUMIFS(Anders[Controleer bedrag],Anders[G/L-code],OverzichtMaandelijkseOnkosten[[#This Row],[G/L-code]],Anders[Aanvraag datumcontrole gestart],\">=\"&DATEVALUE(\" 1 \"&OverzichtMaandelijkseOnkosten[[#Headers],[Maart]]&_JAAR),Anders[Aanvraag datumcontrole gestart],\"<=\"&F$4)","v":{"v":0,"d":"€ 0.00"}},{"$f":"SUMIFS(GespecificeerdeKosten[Controleer bedrag],GespecificeerdeKosten[G/L-code],OverzichtMaandelijkseOnkosten[[#This Row],[G/L-code]],GespecificeerdeKosten[Factuurdatum:],\">=\"&G$3,GespecificeerdeKosten[Factuurdatum:],\"<=\"&G$4)+SUMIFS(Anders[Controleer bedrag],Anders[G/L-code],OverzichtMaandelijkseOnkosten[[#This Row],[G/L-code]],Anders[Aanvraag datumcontrole gestart],\">=\"&DATEVALUE(\" 1 \"&OverzichtMaandelijkseOnkosten[[#Headers],[April]]&_JAAR),Anders[Aanvraag datumcontrole gestart],\"<=\"&G$4)","v":{"v":0,"d":"€ 0.00"}},{"$f":"SUMIFS(GespecificeerdeKosten[Controleer bedrag],GespecificeerdeKosten[G/L-code],OverzichtMaandelijkseOnkosten[[#This Row],[G/L-code]],GespecificeerdeKosten[Factuurdatum:],\">=\"&H$3,GespecificeerdeKosten[Factuurdatum:],\"<=\"&H$4)+SUMIFS(Anders[Controleer bedrag],Anders[G/L-code],OverzichtMaandelijkseOnkosten[[#This Row],[G/L-code]],Anders[Aanvraag datumcontrole gestart],\">=\"&DATEVALUE(\" 1 \"&OverzichtMaandelijkseOnkosten[[#Headers],[Mei]]&_JAAR),Anders[Aanvraag datumcontrole gestart],\"<=\"&H$4)","v":{"v":0,"d":"€ 0.00"}},{"$f":"SUMIFS(GespecificeerdeKosten[Controleer bedrag],GespecificeerdeKosten[G/L-code],OverzichtMaandelijkseOnkosten[[#This Row],[G/L-code]],GespecificeerdeKosten[Factuurdatum:],\">=\"&I$3,GespecificeerdeKosten[Factuurdatum:],\"<=\"&I$4)+SUMIFS(Anders[Controleer bedrag],Anders[G/L-code],OverzichtMaandelijkseOnkosten[[#This Row],[G/L-code]],Anders[Aanvraag datumcontrole gestart],\">=\"&DATEVALUE(\" 1 \"&OverzichtMaandelijkseOnkosten[[#Headers],[Juni]]&_JAAR),Anders[Aanvraag datumcontrole gestart],\"<=\"&I$4)","v":{"v":0,"d":"€ 0.00"}},{"$f":"SUMIFS(GespecificeerdeKosten[Controleer bedrag],GespecificeerdeKosten[G/L-code],OverzichtMaandelijkseOnkosten[[#This Row],[G/L-code]],GespecificeerdeKosten[Factuurdatum:],\">=\"&J$3,GespecificeerdeKosten[Factuurdatum:],\"<=\"&J$4)+SUMIFS(Anders[Controleer bedrag],Anders[G/L-code],OverzichtMaandelijkseOnkosten[[#This Row],[G/L-code]],Anders[Aanvraag datumcontrole gestart],\">=\"&DATEVALUE(\" 1 \"&OverzichtMaandelijkseOnkosten[[#Headers],[Juli]]&_JAAR),Anders[Aanvraag datumcontrole gestart],\"<=\"&J$4)","v":{"v":0,"d":"€ 0.00"}},{"$f":"SUMIFS(GespecificeerdeKosten[Controleer bedrag],GespecificeerdeKosten[G/L-code],OverzichtMaandelijkseOnkosten[[#This Row],[G/L-code]],GespecificeerdeKosten[Factuurdatum:],\">=\"&K$3,GespecificeerdeKosten[Factuurdatum:],\"<=\"&K$4)+SUMIFS(Anders[Controleer bedrag],Anders[G/L-code],OverzichtMaandelijkseOnkosten[[#This Row],[G/L-code]],Anders[Aanvraag datumcontrole gestart],\">=\"&DATEVALUE(\" 1 \"&OverzichtMaandelijkseOnkosten[[#Headers],[Augustus]]&_JAAR),Anders[Aanvraag datumcontrole gestart],\"<=\"&K$4)","v":{"v":0,"d":"€ 0.00"}},{"$f":"SUMIFS(GespecificeerdeKosten[Controleer bedrag],GespecificeerdeKosten[G/L-code],OverzichtMaandelijkseOnkosten[[#This Row],[G/L-code]],GespecificeerdeKosten[Factuurdatum:],\">=\"&L$3,GespecificeerdeKosten[Factuurdatum:],\"<=\"&L$4)+SUMIFS(Anders[Controleer bedrag],Anders[G/L-code],OverzichtMaandelijkseOnkosten[[#This Row],[G/L-code]],Anders[Aanvraag datumcontrole gestart],\">=\"&DATEVALUE(\" 1 \"&OverzichtMaandelijkseOnkosten[[#Headers],[September]]&_JAAR),Anders[Aanvraag datumcontrole gestart],\"<=\"&L$4)","v":{"v":0,"d":"€ 0.00"}},{"$f":"SUMIFS(GespecificeerdeKosten[Controleer bedrag],GespecificeerdeKosten[G/L-code],OverzichtMaandelijkseOnkosten[[#This Row],[G/L-code]],GespecificeerdeKosten[Factuurdatum:],\">=\"&M$3,GespecificeerdeKosten[Factuurdatum:],\"<=\"&M$4)+SUMIFS(Anders[Controleer bedrag],Anders[G/L-code],OverzichtMaandelijkseOnkosten[[#This Row],[G/L-code]],Anders[Aanvraag datumcontrole gestart],\">=\"&DATEVALUE(\" 1 \"&OverzichtMaandelijkseOnkosten[[#Headers],[Oktober]]&_JAAR),Anders[Aanvraag datumcontrole gestart],\"<=\"&M$4)","v":{"v":0,"d":"€ 0.00"}},{"$f":"SUMIFS(GespecificeerdeKosten[Controleer bedrag],GespecificeerdeKosten[G/L-code],OverzichtMaandelijkseOnkosten[[#This Row],[G/L-code]],GespecificeerdeKosten[Factuurdatum:],\">=\"&N$3,GespecificeerdeKosten[Factuurdatum:],\"<=\"&N$4)+SUMIFS(Anders[Controleer bedrag],Anders[G/L-code],OverzichtMaandelijkseOnkosten[[#This Row],[G/L-code]],Anders[Aanvraag datumcontrole gestart],\">=\"&DATEVALUE(\" 1 \"&OverzichtMaandelijkseOnkosten[[#Headers],[November]]&_JAAR),Anders[Aanvraag datumcontrole gestart],\"<=\"&N$4)","v":{"v":0,"d":"€ 0.00"}},{"$f":"SUMIFS(GespecificeerdeKosten[Controleer bedrag],GespecificeerdeKosten[G/L-code],OverzichtMaandelijkseOnkosten[[#This Row],[G/L-code]],GespecificeerdeKosten[Factuurdatum:],\">=\"&O$3,GespecificeerdeKosten[Factuurdatum:],\"<=\"&O$4)+SUMIFS(Anders[Controleer bedrag],Anders[G/L-code],OverzichtMaandelijkseOnkosten[[#This Row],[G/L-code]],Anders[Aanvraag datumcontrole gestart],\">=\"&DATEVALUE(\" 1 \"&OverzichtMaandelijkseOnkosten[[#Headers],[December]]&_JAAR),Anders[Aanvraag datumcontrole gestart],\"<=\"&O$4)","v":{"v":0,"d":"€ 0.00"}},{"$f":"SUM(OverzichtMaandelijkseOnkosten[[#This Row],[Januari]:[December]])","v":{"v":0,"d":"€ 0.00"}}]
[null,8000,"Medisch zorgregeling",{"$f":"SUMIFS(GespecificeerdeKosten[Controleer bedrag],GespecificeerdeKosten[G/L-code],OverzichtMaandelijkseOnkosten[[#This Row],[G/L-code]],GespecificeerdeKosten[Factuurdatum:],\">=\"&D$3,GespecificeerdeKosten[Factuurdatum:],\"<=\"&D$4)+SUMIFS(Anders[Controleer bedrag],Anders[G/L-code],OverzichtMaandelijkseOnkosten[[#This Row],[G/L-code]],Anders[Aanvraag datumcontrole gestart],\">=\"&DATEVALUE(\" 1 \"&OverzichtMaandelijkseOnkosten[[#Headers],[Januari]]&_JAAR),Anders[Aanvraag datumcontrole gestart],\"<=\"&D$4)","v":{"v":0,"d":"€ 0.00"}},{"$f":"SUMIFS(GespecificeerdeKosten[Controleer bedrag],GespecificeerdeKosten[G/L-code],OverzichtMaandelijkseOnkosten[[#This Row],[G/L-code]],GespecificeerdeKosten[Factuurdatum:],\">=\"&E$3,GespecificeerdeKosten[Factuurdatum:],\"<=\"&E$4)+SUMIFS(Anders[Controleer bedrag],Anders[G/L-code],OverzichtMaandelijkseOnkosten[[#This Row],[G/L-code]],Anders[Aanvraag datumcontrole gestart],\">=\"&DATEVALUE(\" 1 \"&OverzichtMaandelijkseOnkosten[[#Headers],[Februari]]&_JAAR),Anders[Aanvraag datumcontrole gestart],\"<=\"&E$4)","v":{"v":0,"d":"€ 0.00"}},{"$f":"SUMIFS(GespecificeerdeKosten[Controleer bedrag],GespecificeerdeKosten[G/L-code],OverzichtMaandelijkseOnkosten[[#This Row],[G/L-code]],GespecificeerdeKosten[Factuurdatum:],\">=\"&F$3,GespecificeerdeKosten[Factuurdatum:],\"<=\"&F$4)+SUMIFS(Anders[Controleer bedrag],Anders[G/L-code],OverzichtMaandelijkseOnkosten[[#This Row],[G/L-code]],Anders[Aanvraag datumcontrole gestart],\">=\"&DATEVALUE(\" 1 \"&OverzichtMaandelijkseOnkosten[[#Headers],[Maart]]&_JAAR),Anders[Aanvraag datumcontrole gestart],\"<=\"&F$4)","v":{"v":0,"d":"€ 0.00"}},{"$f":"SUMIFS(GespecificeerdeKosten[Controleer bedrag],GespecificeerdeKosten[G/L-code],OverzichtMaandelijkseOnkosten[[#This Row],[G/L-code]],GespecificeerdeKosten[Factuurdatum:],\">=\"&G$3,GespecificeerdeKosten[Factuurdatum:],\"<=\"&G$4)+SUMIFS(Anders[Controleer bedrag],Anders[G/L-code],OverzichtMaandelijkseOnkosten[[#This Row],[G/L-code]],Anders[Aanvraag datumcontrole gestart],\">=\"&DATEVALUE(\" 1 \"&OverzichtMaandelijkseOnkosten[[#Headers],[April]]&_JAAR),Anders[Aanvraag datumcontrole gestart],\"<=\"&G$4)","v":{"v":0,"d":"€ 0.00"}},{"$f":"SUMIFS(GespecificeerdeKosten[Controleer bedrag],GespecificeerdeKosten[G/L-code],OverzichtMaandelijkseOnkosten[[#This Row],[G/L-code]],GespecificeerdeKosten[Factuurdatum:],\">=\"&H$3,GespecificeerdeKosten[Factuurdatum:],\"<=\"&H$4)+SUMIFS(Anders[Controleer bedrag],Anders[G/L-code],OverzichtMaandelijkseOnkosten[[#This Row],[G/L-code]],Anders[Aanvraag datumcontrole gestart],\">=\"&DATEVALUE(\" 1 \"&OverzichtMaandelijkseOnkosten[[#Headers],[Mei]]&_JAAR),Anders[Aanvraag datumcontrole gestart],\"<=\"&H$4)","v":{"v":0,"d":"€ 0.00"}},{"$f":"SUMIFS(GespecificeerdeKosten[Controleer bedrag],GespecificeerdeKosten[G/L-code],OverzichtMaandelijkseOnkosten[[#This Row],[G/L-code]],GespecificeerdeKosten[Factuurdatum:],\">=\"&I$3,GespecificeerdeKosten[Factuurdatum:],\"<=\"&I$4)+SUMIFS(Anders[Controleer bedrag],Anders[G/L-code],OverzichtMaandelijkseOnkosten[[#This Row],[G/L-code]],Anders[Aanvraag datumcontrole gestart],\">=\"&DATEVALUE(\" 1 \"&OverzichtMaandelijkseOnkosten[[#Headers],[Juni]]&_JAAR),Anders[Aanvraag datumcontrole gestart],\"<=\"&I$4)","v":{"v":0,"d":"€ 0.00"}},{"$f":"SUMIFS(GespecificeerdeKosten[Controleer bedrag],GespecificeerdeKosten[G/L-code],OverzichtMaandelijkseOnkosten[[#This Row],[G/L-code]],GespecificeerdeKosten[Factuurdatum:],\">=\"&J$3,GespecificeerdeKosten[Factuurdatum:],\"<=\"&J$4)+SUMIFS(Anders[Controleer bedrag],Anders[G/L-code],OverzichtMaandelijkseOnkosten[[#This Row],[G/L-code]],Anders[Aanvraag datumcontrole gestart],\">=\"&DATEVALUE(\" 1 \"&OverzichtMaandelijkseOnkosten[[#Headers],[Juli]]&_JAAR),Anders[Aanvraag datumcontrole gestart],\"<=\"&J$4)","v":{"v":0,"d":"€ 0.00"}},{"$f":"SUMIFS(GespecificeerdeKosten[Controleer bedrag],GespecificeerdeKosten[G/L-code],OverzichtMaandelijkseOnkosten[[#This Row],[G/L-code]],GespecificeerdeKosten[Factuurdatum:],\">=\"&K$3,GespecificeerdeKosten[Factuurdatum:],\"<=\"&K$4)+SUMIFS(Anders[Controleer bedrag],Anders[G/L-code],OverzichtMaandelijkseOnkosten[[#This Row],[G/L-code]],Anders[Aanvraag datumcontrole gestart],\">=\"&DATEVALUE(\" 1 \"&OverzichtMaandelijkseOnkosten[[#Headers],[Augustus]]&_JAAR),Anders[Aanvraag datumcontrole gestart],\"<=\"&K$4)","v":{"v":0,"d":"€ 0.00"}},{"$f":"SUMIFS(GespecificeerdeKosten[Controleer bedrag],GespecificeerdeKosten[G/L-code],OverzichtMaandelijkseOnkosten[[#This Row],[G/L-code]],GespecificeerdeKosten[Factuurdatum:],\">=\"&L$3,GespecificeerdeKosten[Factuurdatum:],\"<=\"&L$4)+SUMIFS(Anders[Controleer bedrag],Anders[G/L-code],OverzichtMaandelijkseOnkosten[[#This Row],[G/L-code]],Anders[Aanvraag datumcontrole gestart],\">=\"&DATEVALUE(\" 1 \"&OverzichtMaandelijkseOnkosten[[#Headers],[September]]&_JAAR),Anders[Aanvraag datumcontrole gestart],\"<=\"&L$4)","v":{"v":0,"d":"€ 0.00"}},{"$f":"SUMIFS(GespecificeerdeKosten[Controleer bedrag],GespecificeerdeKosten[G/L-code],OverzichtMaandelijkseOnkosten[[#This Row],[G/L-code]],GespecificeerdeKosten[Factuurdatum:],\">=\"&M$3,GespecificeerdeKosten[Factuurdatum:],\"<=\"&M$4)+SUMIFS(Anders[Controleer bedrag],Anders[G/L-code],OverzichtMaandelijkseOnkosten[[#This Row],[G/L-code]],Anders[Aanvraag datumcontrole gestart],\">=\"&DATEVALUE(\" 1 \"&OverzichtMaandelijkseOnkosten[[#Headers],[Oktober]]&_JAAR),Anders[Aanvraag datumcontrole gestart],\"<=\"&M$4)","v":{"v":0,"d":"€ 0.00"}},{"$f":"SUMIFS(GespecificeerdeKosten[Controleer bedrag],GespecificeerdeKosten[G/L-code],OverzichtMaandelijkseOnkosten[[#This Row],[G/L-code]],GespecificeerdeKosten[Factuurdatum:],\">=\"&N$3,GespecificeerdeKosten[Factuurdatum:],\"<=\"&N$4)+SUMIFS(Anders[Controleer bedrag],Anders[G/L-code],OverzichtMaandelijkseOnkosten[[#This Row],[G/L-code]],Anders[Aanvraag datumcontrole gestart],\">=\"&DATEVALUE(\" 1 \"&OverzichtMaandelijkseOnkosten[[#Headers],[November]]&_JAAR),Anders[Aanvraag datumcontrole gestart],\"<=\"&N$4)","v":{"v":0,"d":"€ 0.00"}},{"$f":"SUMIFS(GespecificeerdeKosten[Controleer bedrag],GespecificeerdeKosten[G/L-code],OverzichtMaandelijkseOnkosten[[#This Row],[G/L-code]],GespecificeerdeKosten[Factuurdatum:],\">=\"&O$3,GespecificeerdeKosten[Factuurdatum:],\"<=\"&O$4)+SUMIFS(Anders[Controleer bedrag],Anders[G/L-code],OverzichtMaandelijkseOnkosten[[#This Row],[G/L-code]],Anders[Aanvraag datumcontrole gestart],\">=\"&DATEVALUE(\" 1 \"&OverzichtMaandelijkseOnkosten[[#Headers],[December]]&_JAAR),Anders[Aanvraag datumcontrole gestart],\"<=\"&O$4)","v":{"v":0,"d":"€ 0.00"}},{"$f":"SUM(OverzichtMaandelijkseOnkosten[[#This Row],[Januari]:[December]])","v":{"v":0,"d":"€ 0.00"}}]
[null,9000,"Bouwkosten",{"$f":"SUMIFS(GespecificeerdeKosten[Controleer bedrag],GespecificeerdeKosten[G/L-code],OverzichtMaandelijkseOnkosten[[#This Row],[G/L-code]],GespecificeerdeKosten[Factuurdatum:],\">=\"&D$3,GespecificeerdeKosten[Factuurdatum:],\"<=\"&D$4)+SUMIFS(Anders[Controleer bedrag],Anders[G/L-code],OverzichtMaandelijkseOnkosten[[#This Row],[G/L-code]],Anders[Aanvraag datumcontrole gestart],\">=\"&DATEVALUE(\" 1 \"&OverzichtMaandelijkseOnkosten[[#Headers],[Januari]]&_JAAR),Anders[Aanvraag datumcontrole gestart],\"<=\"&D$4)","v":{"v":0,"d":"€ 0.00"}},{"$f":"SUMIFS(GespecificeerdeKosten[Controleer bedrag],GespecificeerdeKosten[G/L-code],OverzichtMaandelijkseOnkosten[[#This Row],[G/L-code]],GespecificeerdeKosten[Factuurdatum:],\">=\"&E$3,GespecificeerdeKosten[Factuurdatum:],\"<=\"&E$4)+SUMIFS(Anders[Controleer bedrag],Anders[G/L-code],OverzichtMaandelijkseOnkosten[[#This Row],[G/L-code]],Anders[Aanvraag datumcontrole gestart],\">=\"&DATEVALUE(\" 1 \"&OverzichtMaandelijkseOnkosten[[#Headers],[Februari]]&_JAAR),Anders[Aanvraag datumcontrole gestart],\"<=\"&E$4)","v":{"v":0,"d":"€ 0.00"}},{"$f":"SUMIFS(GespecificeerdeKosten[Controleer bedrag],GespecificeerdeKosten[G/L-code],OverzichtMaandelijkseOnkosten[[#This Row],[G/L-code]],GespecificeerdeKosten[Factuurdatum:],\">=\"&F$3,GespecificeerdeKosten[Factuurdatum:],\"<=\"&F$4)+SUMIFS(Anders[Controleer bedrag],Anders[G/L-code],OverzichtMaandelijkseOnkosten[[#This Row],[G/L-code]],Anders[Aanvraag datumcontrole gestart],\">=\"&DATEVALUE(\" 1 \"&OverzichtMaandelijkseOnkosten[[#Headers],[Maart]]&_JAAR),Anders[Aanvraag datumcontrole gestart],\"<=\"&F$4)","v":{"v":0,"d":"€ 0.00"}},{"$f":"SUMIFS(GespecificeerdeKosten[Controleer bedrag],GespecificeerdeKosten[G/L-code],OverzichtMaandelijkseOnkosten[[#This Row],[G/L-code]],GespecificeerdeKosten[Factuurdatum:],\">=\"&G$3,GespecificeerdeKosten[Factuurdatum:],\"<=\"&G$4)+SUMIFS(Anders[Controleer bedrag],Anders[G/L-code],OverzichtMaandelijkseOnkosten[[#This Row],[G/L-code]],Anders[Aanvraag datumcontrole gestart],\">=\"&DATEVALUE(\" 1 \"&OverzichtMaandelijkseOnkosten[[#Headers],[April]]&_JAAR),Anders[Aanvraag datumcontrole gestart],\"<=\"&G$4)","v":{"v":0,"d":"€ 0.00"}},{"$f":"SUMIFS(GespecificeerdeKosten[Controleer bedrag],GespecificeerdeKosten[G/L-code],OverzichtMaandelijkseOnkosten[[#This Row],[G/L-code]],GespecificeerdeKosten[Factuurdatum:],\">=\"&H$3,GespecificeerdeKosten[Factuurdatum:],\"<=\"&H$4)+SUMIFS(Anders[Controleer bedrag],Anders[G/L-code],OverzichtMaandelijkseOnkosten[[#This Row],[G/L-code]],Anders[Aanvraag datumcontrole gestart],\">=\"&DATEVALUE(\" 1 \"&OverzichtMaandelijkseOnkosten[[#Headers],[Mei]]&_JAAR),Anders[Aanvraag datumcontrole gestart],\"<=\"&H$4)","v":{"v":0,"d":"€ 0.00"}},{"$f":"SUMIFS(GespecificeerdeKosten[Controleer bedrag],GespecificeerdeKosten[G/L-code],OverzichtMaandelijkseOnkosten[[#This Row],[G/L-code]],GespecificeerdeKosten[Factuurdatum:],\">=\"&I$3,GespecificeerdeKosten[Factuurdatum:],\"<=\"&I$4)+SUMIFS(Anders[Controleer bedrag],Anders[G/L-code],OverzichtMaandelijkseOnkosten[[#This Row],[G/L-code]],Anders[Aanvraag datumcontrole gestart],\">=\"&DATEVALUE(\" 1 \"&OverzichtMaandelijkseOnkosten[[#Headers],[Juni]]&_JAAR),Anders[Aanvraag datumcontrole gestart],\"<=\"&I$4)","v":{"v":0,"d":"€ 0.00"}},{"$f":"SUMIFS(GespecificeerdeKosten[Controleer bedrag],GespecificeerdeKosten[G/L-code],OverzichtMaandelijkseOnkosten[[#This Row],[G/L-code]],GespecificeerdeKosten[Factuurdatum:],\">=\"&J$3,GespecificeerdeKosten[Factuurdatum:],\"<=\"&J$4)+SUMIFS(Anders[Controleer bedrag],Anders[G/L-code],OverzichtMaandelijkseOnkosten[[#This Row],[G/L-code]],Anders[Aanvraag datumcontrole gestart],\">=\"&DATEVALUE(\" 1 \"&OverzichtMaandelijkseOnkosten[[#Headers],[Juli]]&_JAAR),Anders[Aanvraag datumcontrole gestart],\"<=\"&J$4)","v":{"v":0,"d":"€ 0.00"}},{"$f":"SUMIFS(GespecificeerdeKosten[Controleer bedrag],GespecificeerdeKosten[G/L-code],OverzichtMaandelijkseOnkosten[[#This Row],[G/L-code]],GespecificeerdeKosten[Factuurdatum:],\">=\"&K$3,GespecificeerdeKosten[Factuurdatum:],\"<=\"&K$4)+SUMIFS(Anders[Controleer bedrag],Anders[G/L-code],OverzichtMaandelijkseOnkosten[[#This Row],[G/L-code]],Anders[Aanvraag datumcontrole gestart],\">=\"&DATEVALUE(\" 1 \"&OverzichtMaandelijkseOnkosten[[#Headers],[Augustus]]&_JAAR),Anders[Aanvraag datumcontrole gestart],\"<=\"&K$4)","v":{"v":0,"d":"€ 0.00"}},{"$f":"SUMIFS(GespecificeerdeKosten[Controleer bedrag],GespecificeerdeKosten[G/L-code],OverzichtMaandelijkseOnkosten[[#This Row],[G/L-code]],GespecificeerdeKosten[Factuurdatum:],\">=\"&L$3,GespecificeerdeKosten[Factuurdatum:],\"<=\"&L$4)+SUMIFS(Anders[Controleer bedrag],Anders[G/L-code],OverzichtMaandelijkseOnkosten[[#This Row],[G/L-code]],Anders[Aanvraag datumcontrole gestart],\">=\"&DATEVALUE(\" 1 \"&OverzichtMaandelijkseOnkosten[[#Headers],[September]]&_JAAR),Anders[Aanvraag datumcontrole gestart],\"<=\"&L$4)","v":{"v":0,"d":"€ 0.00"}},{"$f":"SUMIFS(GespecificeerdeKosten[Controleer bedrag],GespecificeerdeKosten[G/L-code],OverzichtMaandelijkseOnkosten[[#This Row],[G/L-code]],GespecificeerdeKosten[Factuurdatum:],\">=\"&M$3,GespecificeerdeKosten[Factuurdatum:],\"<=\"&M$4)+SUMIFS(Anders[Controleer bedrag],Anders[G/L-code],OverzichtMaandelijkseOnkosten[[#This Row],[G/L-code]],Anders[Aanvraag datumcontrole gestart],\">=\"&DATEVALUE(\" 1 \"&OverzichtMaandelijkseOnkosten[[#Headers],[Oktober]]&_JAAR),Anders[Aanvraag datumcontrole gestart],\"<=\"&M$4)","v":{"v":0,"d":"€ 0.00"}},{"$f":"SUMIFS(GespecificeerdeKosten[Controleer bedrag],GespecificeerdeKosten[G/L-code],OverzichtMaandelijkseOnkosten[[#This Row],[G/L-code]],GespecificeerdeKosten[Factuurdatum:],\">=\"&N$3,GespecificeerdeKosten[Factuurdatum:],\"<=\"&N$4)+SUMIFS(Anders[Controleer bedrag],Anders[G/L-code],OverzichtMaandelijkseOnkosten[[#This Row],[G/L-code]],Anders[Aanvraag datumcontrole gestart],\">=\"&DATEVALUE(\" 1 \"&OverzichtMaandelijkseOnkosten[[#Headers],[November]]&_JAAR),Anders[Aanvraag datumcontrole gestart],\"<=\"&N$4)","v":{"v":0,"d":"€ 0.00"}},{"$f":"SUMIFS(GespecificeerdeKosten[Controleer bedrag],GespecificeerdeKosten[G/L-code],OverzichtMaandelijkseOnkosten[[#This Row],[G/L-code]],GespecificeerdeKosten[Factuurdatum:],\">=\"&O$3,GespecificeerdeKosten[Factuurdatum:],\"<=\"&O$4)+SUMIFS(Anders[Controleer bedrag],Anders[G/L-code],OverzichtMaandelijkseOnkosten[[#This Row],[G/L-code]],Anders[Aanvraag datumcontrole gestart],\">=\"&DATEVALUE(\" 1 \"&OverzichtMaandelijkseOnkosten[[#Headers],[December]]&_JAAR),Anders[Aanvraag datumcontrole gestart],\"<=\"&O$4)","v":{"v":0,"d":"€ 0.00"}},{"$f":"SUM(OverzichtMaandelijkseOnkosten[[#This Row],[Januari]:[December]])","v":{"v":0,"d":"€ 0.00"}}]
[null,10000,"Marketing",{"$f":"SUMIFS(GespecificeerdeKosten[Controleer bedrag],GespecificeerdeKosten[G/L-code],OverzichtMaandelijkseOnkosten[[#This Row],[G/L-code]],GespecificeerdeKosten[Factuurdatum:],\">=\"&D$3,GespecificeerdeKosten[Factuurdatum:],\"<=\"&D$4)+SUMIFS(Anders[Controleer bedrag],Anders[G/L-code],OverzichtMaandelijkseOnkosten[[#This Row],[G/L-code]],Anders[Aanvraag datumcontrole gestart],\">=\"&DATEVALUE(\" 1 \"&OverzichtMaandelijkseOnkosten[[#Headers],[Januari]]&_JAAR),Anders[Aanvraag datumcontrole gestart],\"<=\"&D$4)","v":{"v":0,"d":"€ 0.00"}},{"$f":"SUMIFS(GespecificeerdeKosten[Controleer bedrag],GespecificeerdeKosten[G/L-code],OverzichtMaandelijkseOnkosten[[#This Row],[G/L-code]],GespecificeerdeKosten[Factuurdatum:],\">=\"&E$3,GespecificeerdeKosten[Factuurdatum:],\"<=\"&E$4)+SUMIFS(Anders[Controleer bedrag],Anders[G/L-code],OverzichtMaandelijkseOnkosten[[#This Row],[G/L-code]],Anders[Aanvraag datumcontrole gestart],\">=\"&DATEVALUE(\" 1 \"&OverzichtMaandelijkseOnkosten[[#Headers],[Februari]]&_JAAR),Anders[Aanvraag datumcontrole gestart],\"<=\"&E$4)","v":{"v":0,"d":"€ 0.00"}},{"$f":"SUMIFS(GespecificeerdeKosten[Controleer bedrag],GespecificeerdeKosten[G/L-code],OverzichtMaandelijkseOnkosten[[#This Row],[G/L-code]],GespecificeerdeKosten[Factuurdatum:],\">=\"&F$3,GespecificeerdeKosten[Factuurdatum:],\"<=\"&F$4)+SUMIFS(Anders[Controleer bedrag],Anders[G/L-code],OverzichtMaandelijkseOnkosten[[#This Row],[G/L-code]],Anders[Aanvraag datumcontrole gestart],\">=\"&DATEVALUE(\" 1 \"&OverzichtMaandelijkseOnkosten[[#Headers],[Maart]]&_JAAR),Anders[Aanvraag datumcontrole gestart],\"<=\"&F$4)","v":{"v":0,"d":"€ 0.00"}},{"$f":"SUMIFS(GespecificeerdeKosten[Controleer bedrag],GespecificeerdeKosten[G/L-code],OverzichtMaandelijkseOnkosten[[#This Row],[G/L-code]],GespecificeerdeKosten[Factuurdatum:],\">=\"&G$3,GespecificeerdeKosten[Factuurdatum:],\"<=\"&G$4)+SUMIFS(Anders[Controleer bedrag],Anders[G/L-code],OverzichtMaandelijkseOnkosten[[#This Row],[G/L-code]],Anders[Aanvraag datumcontrole gestart],\">=\"&DATEVALUE(\" 1 \"&OverzichtMaandelijkseOnkosten[[#Headers],[April]]&_JAAR),Anders[Aanvraag datumcontrole gestart],\"<=\"&G$4)","v":{"v":0,"d":"€ 0.00"}},{"$f":"SUMIFS(GespecificeerdeKosten[Controleer bedrag],GespecificeerdeKosten[G/L-code],OverzichtMaandelijkseOnkosten[[#This Row],[G/L-code]],GespecificeerdeKosten[Factuurdatum:],\">=\"&H$3,GespecificeerdeKosten[Factuurdatum:],\"<=\"&H$4)+SUMIFS(Anders[Controleer bedrag],Anders[G/L-code],OverzichtMaandelijkseOnkosten[[#This Row],[G/L-code]],Anders[Aanvraag datumcontrole gestart],\">=\"&DATEVALUE(\" 1 \"&OverzichtMaandelijkseOnkosten[[#Headers],[Mei]]&_JAAR),Anders[Aanvraag datumcontrole gestart],\"<=\"&H$4)","v":{"v":0,"d":"€ 0.00"}},{"$f":"SUMIFS(GespecificeerdeKosten[Controleer bedrag],GespecificeerdeKosten[G/L-code],OverzichtMaandelijkseOnkosten[[#This Row],[G/L-code]],GespecificeerdeKosten[Factuurdatum:],\">=\"&I$3,GespecificeerdeKosten[Factuurdatum:],\"<=\"&I$4)+SUMIFS(Anders[Controleer bedrag],Anders[G/L-code],OverzichtMaandelijkseOnkosten[[#This Row],[G/L-code]],Anders[Aanvraag datumcontrole gestart],\">=\"&DATEVALUE(\" 1 \"&OverzichtMaandelijkseOnkosten[[#Headers],[Juni]]&_JAAR),Anders[Aanvraag datumcontrole gestart],\"<=\"&I$4)","v":{"v":0,"d":"€ 0.00"}},{"$f":"SUMIFS(GespecificeerdeKosten[Controleer bedrag],GespecificeerdeKosten[G/L-code],OverzichtMaandelijkseOnkosten[[#This Row],[G/L-code]],GespecificeerdeKosten[Factuurdatum:],\">=\"&J$3,GespecificeerdeKosten[Factuurdatum:],\"<=\"&J$4)+SUMIFS(Anders[Controleer bedrag],Anders[G/L-code],OverzichtMaandelijkseOnkosten[[#This Row],[G/L-code]],Anders[Aanvraag datumcontrole gestart],\">=\"&DATEVALUE(\" 1 \"&OverzichtMaandelijkseOnkosten[[#Headers],[Juli]]&_JAAR),Anders[Aanvraag datumcontrole gestart],\"<=\"&J$4)","v":{"v":0,"d":"€ 0.00"}},{"$f":"SUMIFS(GespecificeerdeKosten[Controleer bedrag],GespecificeerdeKosten[G/L-code],OverzichtMaandelijkseOnkosten[[#This Row],[G/L-code]],GespecificeerdeKosten[Factuurdatum:],\">=\"&K$3,GespecificeerdeKosten[Factuurdatum:],\"<=\"&K$4)+SUMIFS(Anders[Controleer bedrag],Anders[G/L-code],OverzichtMaandelijkseOnkosten[[#This Row],[G/L-code]],Anders[Aanvraag datumcontrole gestart],\">=\"&DATEVALUE(\" 1 \"&OverzichtMaandelijkseOnkosten[[#Headers],[Augustus]]&_JAAR),Anders[Aanvraag datumcontrole gestart],\"<=\"&K$4)","v":{"v":0,"d":"€ 0.00"}},{"$f":"SUMIFS(GespecificeerdeKosten[Controleer bedrag],GespecificeerdeKosten[G/L-code],OverzichtMaandelijkseOnkosten[[#This Row],[G/L-code]],GespecificeerdeKosten[Factuurdatum:],\">=\"&L$3,GespecificeerdeKosten[Factuurdatum:],\"<=\"&L$4)+SUMIFS(Anders[Controleer bedrag],Anders[G/L-code],OverzichtMaandelijkseOnkosten[[#This Row],[G/L-code]],Anders[Aanvraag datumcontrole gestart],\">=\"&DATEVALUE(\" 1 \"&OverzichtMaandelijkseOnkosten[[#Headers],[September]]&_JAAR),Anders[Aanvraag datumcontrole gestart],\"<=\"&L$4)","v":{"v":0,"d":"€ 0.00"}},{"$f":"SUMIFS(GespecificeerdeKosten[Controleer bedrag],GespecificeerdeKosten[G/L-code],OverzichtMaandelijkseOnkosten[[#This Row],[G/L-code]],GespecificeerdeKosten[Factuurdatum:],\">=\"&M$3,GespecificeerdeKosten[Factuurdatum:],\"<=\"&M$4)+SUMIFS(Anders[Controleer bedrag],Anders[G/L-code],OverzichtMaandelijkseOnkosten[[#This Row],[G/L-code]],Anders[Aanvraag datumcontrole gestart],\">=\"&DATEVALUE(\" 1 \"&OverzichtMaandelijkseOnkosten[[#Headers],[Oktober]]&_JAAR),Anders[Aanvraag datumcontrole gestart],\"<=\"&M$4)","v":{"v":0,"d":"€ 0.00"}},{"$f":"SUMIFS(GespecificeerdeKosten[Controleer bedrag],GespecificeerdeKosten[G/L-code],OverzichtMaandelijkseOnkosten[[#This Row],[G/L-code]],GespecificeerdeKosten[Factuurdatum:],\">=\"&N$3,GespecificeerdeKosten[Factuurdatum:],\"<=\"&N$4)+SUMIFS(Anders[Controleer bedrag],Anders[G/L-code],OverzichtMaandelijkseOnkosten[[#This Row],[G/L-code]],Anders[Aanvraag datumcontrole gestart],\">=\"&DATEVALUE(\" 1 \"&OverzichtMaandelijkseOnkosten[[#Headers],[November]]&_JAAR),Anders[Aanvraag datumcontrole gestart],\"<=\"&N$4)","v":{"v":0,"d":"€ 0.00"}},{"$f":"SUMIFS(GespecificeerdeKosten[Controleer bedrag],GespecificeerdeKosten[G/L-code],OverzichtMaandelijkseOnkosten[[#This Row],[G/L-code]],GespecificeerdeKosten[Factuurdatum:],\">=\"&O$3,GespecificeerdeKosten[Factuurdatum:],\"<=\"&O$4)+SUMIFS(Anders[Controleer bedrag],Anders[G/L-code],OverzichtMaandelijkseOnkosten[[#This Row],[G/L-code]],Anders[Aanvraag datumcontrole gestart],\">=\"&DATEVALUE(\" 1 \"&OverzichtMaandelijkseOnkosten[[#Headers],[December]]&_JAAR),Anders[Aanvraag datumcontrole gestart],\"<=\"&O$4)","v":{"v":0,"d":"€ 0.00"}},{"$f":"SUM(OverzichtMaandelijkseOnkosten[[#This Row],[Januari]:[December]])","v":{"v":0,"d":"€ 0.00"}}]
[null,11000,"Liefdadigheid",{"$f":"SUMIFS(GespecificeerdeKosten[Controleer bedrag],GespecificeerdeKosten[G/L-code],OverzichtMaandelijkseOnkosten[[#This Row],[G/L-code]],GespecificeerdeKosten[Factuurdatum:],\">=\"&D$3,GespecificeerdeKosten[Factuurdatum:],\"<=\"&D$4)+SUMIFS(Anders[Controleer bedrag],Anders[G/L-code],OverzichtMaandelijkseOnkosten[[#This Row],[G/L-code]],Anders[Aanvraag datumcontrole gestart],\">=\"&DATEVALUE(\" 1 \"&OverzichtMaandelijkseOnkosten[[#Headers],[Januari]]&_JAAR),Anders[Aanvraag datumcontrole gestart],\"<=\"&D$4)","v":{"v":0,"d":"€ 0.00"}},{"$f":"SUMIFS(GespecificeerdeKosten[Controleer bedrag],GespecificeerdeKosten[G/L-code],OverzichtMaandelijkseOnkosten[[#This Row],[G/L-code]],GespecificeerdeKosten[Factuurdatum:],\">=\"&E$3,GespecificeerdeKosten[Factuurdatum:],\"<=\"&E$4)+SUMIFS(Anders[Controleer bedrag],Anders[G/L-code],OverzichtMaandelijkseOnkosten[[#This Row],[G/L-code]],Anders[Aanvraag datumcontrole gestart],\">=\"&DATEVALUE(\" 1 \"&OverzichtMaandelijkseOnkosten[[#Headers],[Februari]]&_JAAR),Anders[Aanvraag datumcontrole gestart],\"<=\"&E$4)","v":{"v":0,"d":"€ 0.00"}},{"$f":"SUMIFS(GespecificeerdeKosten[Controleer bedrag],GespecificeerdeKosten[G/L-code],OverzichtMaandelijkseOnkosten[[#This Row],[G/L-code]],GespecificeerdeKosten[Factuurdatum:],\">=\"&F$3,GespecificeerdeKosten[Factuurdatum:],\"<=\"&F$4)+SUMIFS(Anders[Controleer bedrag],Anders[G/L-code],OverzichtMaandelijkseOnkosten[[#This Row],[G/L-code]],Anders[Aanvraag datumcontrole gestart],\">=\"&DATEVALUE(\" 1 \"&OverzichtMaandelijkseOnkosten[[#Headers],[Maart]]&_JAAR),Anders[Aanvraag datumcontrole gestart],\"<=\"&F$4)","v":{"v":0,"d":"€ 0.00"}},{"$f":"SUMIFS(GespecificeerdeKosten[Controleer bedrag],GespecificeerdeKosten[G/L-code],OverzichtMaandelijkseOnkosten[[#This Row],[G/L-code]],GespecificeerdeKosten[Factuurdatum:],\">=\"&G$3,GespecificeerdeKosten[Factuurdatum:],\"<=\"&G$4)+SUMIFS(Anders[Controleer bedrag],Anders[G/L-code],OverzichtMaandelijkseOnkosten[[#This Row],[G/L-code]],Anders[Aanvraag datumcontrole gestart],\">=\"&DATEVALUE(\" 1 \"&OverzichtMaandelijkseOnkosten[[#Headers],[April]]&_JAAR),Anders[Aanvraag datumcontrole gestart],\"<=\"&G$4)","v":{"v":0,"d":"€ 0.00"}},{"$f":"SUMIFS(GespecificeerdeKosten[Controleer bedrag],GespecificeerdeKosten[G/L-code],OverzichtMaandelijkseOnkosten[[#This Row],[G/L-code]],GespecificeerdeKosten[Factuurdatum:],\">=\"&H$3,GespecificeerdeKosten[Factuurdatum:],\"<=\"&H$4)+SUMIFS(Anders[Controleer bedrag],Anders[G/L-code],OverzichtMaandelijkseOnkosten[[#This Row],[G/L-code]],Anders[Aanvraag datumcontrole gestart],\">=\"&DATEVALUE(\" 1 \"&OverzichtMaandelijkseOnkosten[[#Headers],[Mei]]&_JAAR),Anders[Aanvraag datumcontrole gestart],\"<=\"&H$4)","v":{"v":0,"d":"€ 0.00"}},{"$f":"SUMIFS(GespecificeerdeKosten[Controleer bedrag],GespecificeerdeKosten[G/L-code],OverzichtMaandelijkseOnkosten[[#This Row],[G/L-code]],GespecificeerdeKosten[Factuurdatum:],\">=\"&I$3,GespecificeerdeKosten[Factuurdatum:],\"<=\"&I$4)+SUMIFS(Anders[Controleer bedrag],Anders[G/L-code],OverzichtMaandelijkseOnkosten[[#This Row],[G/L-code]],Anders[Aanvraag datumcontrole gestart],\">=\"&DATEVALUE(\" 1 \"&OverzichtMaandelijkseOnkosten[[#Headers],[Juni]]&_JAAR),Anders[Aanvraag datumcontrole gestart],\"<=\"&I$4)","v":{"v":0,"d":"€ 0.00"}},{"$f":"SUMIFS(GespecificeerdeKosten[Controleer bedrag],GespecificeerdeKosten[G/L-code],OverzichtMaandelijkseOnkosten[[#This Row],[G/L-code]],GespecificeerdeKosten[Factuurdatum:],\">=\"&J$3,GespecificeerdeKosten[Factuurdatum:],\"<=\"&J$4)+SUMIFS(Anders[Controleer bedrag],Anders[G/L-code],OverzichtMaandelijkseOnkosten[[#This Row],[G/L-code]],Anders[Aanvraag datumcontrole gestart],\">=\"&DATEVALUE(\" 1 \"&OverzichtMaandelijkseOnkosten[[#Headers],[Juli]]&_JAAR),Anders[Aanvraag datumcontrole gestart],\"<=\"&J$4)","v":{"v":0,"d":"€ 0.00"}},{"$f":"SUMIFS(GespecificeerdeKosten[Controleer bedrag],GespecificeerdeKosten[G/L-code],OverzichtMaandelijkseOnkosten[[#This Row],[G/L-code]],GespecificeerdeKosten[Factuurdatum:],\">=\"&K$3,GespecificeerdeKosten[Factuurdatum:],\"<=\"&K$4)+SUMIFS(Anders[Controleer bedrag],Anders[G/L-code],OverzichtMaandelijkseOnkosten[[#This Row],[G/L-code]],Anders[Aanvraag datumcontrole gestart],\">=\"&DATEVALUE(\" 1 \"&OverzichtMaandelijkseOnkosten[[#Headers],[Augustus]]&_JAAR),Anders[Aanvraag datumcontrole gestart],\"<=\"&K$4)","v":{"v":0,"d":"€ 0.00"}},{"$f":"SUMIFS(GespecificeerdeKosten[Controleer bedrag],GespecificeerdeKosten[G/L-code],OverzichtMaandelijkseOnkosten[[#This Row],[G/L-code]],GespecificeerdeKosten[Factuurdatum:],\">=\"&L$3,GespecificeerdeKosten[Factuurdatum:],\"<=\"&L$4)+SUMIFS(Anders[Controleer bedrag],Anders[G/L-code],OverzichtMaandelijkseOnkosten[[#This Row],[G/L-code]],Anders[Aanvraag datumcontrole gestart],\">=\"&DATEVALUE(\" 1 \"&OverzichtMaandelijkseOnkosten[[#Headers],[September]]&_JAAR),Anders[Aanvraag datumcontrole gestart],\"<=\"&L$4)","v":{"v":0,"d":"€ 0.00"}},{"$f":"SUMIFS(GespecificeerdeKosten[Controleer bedrag],GespecificeerdeKosten[G/L-code],OverzichtMaandelijkseOnkosten[[#This Row],[G/L-code]],GespecificeerdeKosten[Factuurdatum:],\">=\"&M$3,GespecificeerdeKosten[Factuurdatum:],\"<=\"&M$4)+SUMIFS(Anders[Controleer bedrag],Anders[G/L-code],OverzichtMaandelijkseOnkosten[[#This Row],[G/L-code]],Anders[Aanvraag datumcontrole gestart],\">=\"&DATEVALUE(\" 1 \"&OverzichtMaandelijkseOnkosten[[#Headers],[Oktober]]&_JAAR),Anders[Aanvraag datumcontrole gestart],\"<=\"&M$4)","v":{"v":0,"d":"€ 0.00"}},{"$f":"SUMIFS(GespecificeerdeKosten[Controleer bedrag],GespecificeerdeKosten[G/L-code],OverzichtMaandelijkseOnkosten[[#This Row],[G/L-code]],GespecificeerdeKosten[Factuurdatum:],\">=\"&N$3,GespecificeerdeKosten[Factuurdatum:],\"<=\"&N$4)+SUMIFS(Anders[Controleer bedrag],Anders[G/L-code],OverzichtMaandelijkseOnkosten[[#This Row],[G/L-code]],Anders[Aanvraag datumcontrole gestart],\">=\"&DATEVALUE(\" 1 \"&OverzichtMaandelijkseOnkosten[[#Headers],[November]]&_JAAR),Anders[Aanvraag datumcontrole gestart],\"<=\"&N$4)","v":{"v":0,"d":"€ 0.00"}},{"$f":"SUMIFS(GespecificeerdeKosten[Controleer bedrag],GespecificeerdeKosten[G/L-code],OverzichtMaandelijkseOnkosten[[#This Row],[G/L-code]],GespecificeerdeKosten[Factuurdatum:],\">=\"&O$3,GespecificeerdeKosten[Factuurdatum:],\"<=\"&O$4)+SUMIFS(Anders[Controleer bedrag],Anders[G/L-code],OverzichtMaandelijkseOnkosten[[#This Row],[G/L-code]],Anders[Aanvraag datumcontrole gestart],\">=\"&DATEVALUE(\" 1 \"&OverzichtMaandelijkseOnkosten[[#Headers],[December]]&_JAAR),Anders[Aanvraag datumcontrole gestart],\"<=\"&O$4)","v":{"v":0,"d":"€ 0.00"}},{"$f":"SUM(OverzichtMaandelijkseOnkosten[[#This Row],[Januari]:[December]])","v":{"v":0,"d":"€ 0.00"}}]
[null,12000,"Sponsoring",{"$f":"SUMIFS(GespecificeerdeKosten[Controleer bedrag],GespecificeerdeKosten[G/L-code],OverzichtMaandelijkseOnkosten[[#This Row],[G/L-code]],GespecificeerdeKosten[Factuurdatum:],\">=\"&D$3,GespecificeerdeKosten[Factuurdatum:],\"<=\"&D$4)+SUMIFS(Anders[Controleer bedrag],Anders[G/L-code],OverzichtMaandelijkseOnkosten[[#This Row],[G/L-code]],Anders[Aanvraag datumcontrole gestart],\">=\"&DATEVALUE(\" 1 \"&OverzichtMaandelijkseOnkosten[[#Headers],[Januari]]&_JAAR),Anders[Aanvraag datumcontrole gestart],\"<=\"&D$4)","v":{"v":0,"d":"€ 0.00"}},{"$f":"SUMIFS(GespecificeerdeKosten[Controleer bedrag],GespecificeerdeKosten[G/L-code],OverzichtMaandelijkseOnkosten[[#This Row],[G/L-code]],GespecificeerdeKosten[Factuurdatum:],\">=\"&E$3,GespecificeerdeKosten[Factuurdatum:],\"<=\"&E$4)+SUMIFS(Anders[Controleer bedrag],Anders[G/L-code],OverzichtMaandelijkseOnkosten[[#This Row],[G/L-code]],Anders[Aanvraag datumcontrole gestart],\">=\"&DATEVALUE(\" 1 \"&OverzichtMaandelijkseOnkosten[[#Headers],[Februari]]&_JAAR),Anders[Aanvraag datumcontrole gestart],\"<=\"&E$4)","v":{"v":0,"d":"€ 0.00"}},{"$f":"SUMIFS(GespecificeerdeKosten[Controleer bedrag],GespecificeerdeKosten[G/L-code],OverzichtMaandelijkseOnkosten[[#This Row],[G/L-code]],GespecificeerdeKosten[Factuurdatum:],\">=\"&F$3,GespecificeerdeKosten[Factuurdatum:],\"<=\"&F$4)+SUMIFS(Anders[Controleer bedrag],Anders[G/L-code],OverzichtMaandelijkseOnkosten[[#This Row],[G/L-code]],Anders[Aanvraag datumcontrole gestart],\">=\"&DATEVALUE(\" 1 \"&OverzichtMaandelijkseOnkosten[[#Headers],[Maart]]&_JAAR),Anders[Aanvraag datumcontrole gestart],\"<=\"&F$4)","v":{"v":0,"d":"€ 0.00"}},{"$f":"SUMIFS(GespecificeerdeKosten[Controleer bedrag],GespecificeerdeKosten[G/L-code],OverzichtMaandelijkseOnkosten[[#This Row],[G/L-code]],GespecificeerdeKosten[Factuurdatum:],\">=\"&G$3,GespecificeerdeKosten[Factuurdatum:],\"<=\"&G$4)+SUMIFS(Anders[Controleer bedrag],Anders[G/L-code],OverzichtMaandelijkseOnkosten[[#This Row],[G/L-code]],Anders[Aanvraag datumcontrole gestart],\">=\"&DATEVALUE(\" 1 \"&OverzichtMaandelijkseOnkosten[[#Headers],[April]]&_JAAR),Anders[Aanvraag datumcontrole gestart],\"<=\"&G$4)","v":{"v":0,"d":"€ 0.00"}},{"$f":"SUMIFS(GespecificeerdeKosten[Controleer bedrag],GespecificeerdeKosten[G/L-code],OverzichtMaandelijkseOnkosten[[#This Row],[G/L-code]],GespecificeerdeKosten[Factuurdatum:],\">=\"&H$3,GespecificeerdeKosten[Factuurdatum:],\"<=\"&H$4)+SUMIFS(Anders[Controleer bedrag],Anders[G/L-code],OverzichtMaandelijkseOnkosten[[#This Row],[G/L-code]],Anders[Aanvraag datumcontrole gestart],\">=\"&DATEVALUE(\" 1 \"&OverzichtMaandelijkseOnkosten[[#Headers],[Mei]]&_JAAR),Anders[Aanvraag datumcontrole gestart],\"<=\"&H$4)","v":{"v":0,"d":"€ 0.00"}},{"$f":"SUMIFS(GespecificeerdeKosten[Controleer bedrag],GespecificeerdeKosten[G/L-code],OverzichtMaandelijkseOnkosten[[#This Row],[G/L-code]],GespecificeerdeKosten[Factuurdatum:],\">=\"&I$3,GespecificeerdeKosten[Factuurdatum:],\"<=\"&I$4)+SUMIFS(Anders[Controleer bedrag],Anders[G/L-code],OverzichtMaandelijkseOnkosten[[#This Row],[G/L-code]],Anders[Aanvraag datumcontrole gestart],\">=\"&DATEVALUE(\" 1 \"&OverzichtMaandelijkseOnkosten[[#Headers],[Juni]]&_JAAR),Anders[Aanvraag datumcontrole gestart],\"<=\"&I$4)","v":{"v":0,"d":"€ 0.00"}},{"$f":"SUMIFS(GespecificeerdeKosten[Controleer bedrag],GespecificeerdeKosten[G/L-code],OverzichtMaandelijkseOnkosten[[#This Row],[G/L-code]],GespecificeerdeKosten[Factuurdatum:],\">=\"&J$3,GespecificeerdeKosten[Factuurdatum:],\"<=\"&J$4)+SUMIFS(Anders[Controleer bedrag],Anders[G/L-code],OverzichtMaandelijkseOnkosten[[#This Row],[G/L-code]],Anders[Aanvraag datumcontrole gestart],\">=\"&DATEVALUE(\" 1 \"&OverzichtMaandelijkseOnkosten[[#Headers],[Juli]]&_JAAR),Anders[Aanvraag datumcontrole gestart],\"<=\"&J$4)","v":{"v":0,"d":"€ 0.00"}},{"$f":"SUMIFS(GespecificeerdeKosten[Controleer bedrag],GespecificeerdeKosten[G/L-code],OverzichtMaandelijkseOnkosten[[#This Row],[G/L-code]],GespecificeerdeKosten[Factuurdatum:],\">=\"&K$3,GespecificeerdeKosten[Factuurdatum:],\"<=\"&K$4)+SUMIFS(Anders[Controleer bedrag],Anders[G/L-code],OverzichtMaandelijkseOnkosten[[#This Row],[G/L-code]],Anders[Aanvraag datumcontrole gestart],\">=\"&DATEVALUE(\" 1 \"&OverzichtMaandelijkseOnkosten[[#Headers],[Augustus]]&_JAAR),Anders[Aanvraag datumcontrole gestart],\"<=\"&K$4)","v":{"v":0,"d":"€ 0.00"}},{"$f":"SUMIFS(GespecificeerdeKosten[Controleer bedrag],GespecificeerdeKosten[G/L-code],OverzichtMaandelijkseOnkosten[[#This Row],[G/L-code]],GespecificeerdeKosten[Factuurdatum:],\">=\"&L$3,GespecificeerdeKosten[Factuurdatum:],\"<=\"&L$4)+SUMIFS(Anders[Controleer bedrag],Anders[G/L-code],OverzichtMaandelijkseOnkosten[[#This Row],[G/L-code]],Anders[Aanvraag datumcontrole gestart],\">=\"&DATEVALUE(\" 1 \"&OverzichtMaandelijkseOnkosten[[#Headers],[September]]&_JAAR),Anders[Aanvraag datumcontrole gestart],\"<=\"&L$4)","v":{"v":0,"d":"€ 0.00"}},{"$f":"SUMIFS(GespecificeerdeKosten[Controleer bedrag],GespecificeerdeKosten[G/L-code],OverzichtMaandelijkseOnkosten[[#This Row],[G/L-code]],GespecificeerdeKosten[Factuurdatum:],\">=\"&M$3,GespecificeerdeKosten[Factuurdatum:],\"<=\"&M$4)+SUMIFS(Anders[Controleer bedrag],Anders[G/L-code],OverzichtMaandelijkseOnkosten[[#This Row],[G/L-code]],Anders[Aanvraag datumcontrole gestart],\">=\"&DATEVALUE(\" 1 \"&OverzichtMaandelijkseOnkosten[[#Headers],[Oktober]]&_JAAR),Anders[Aanvraag datumcontrole gestart],\"<=\"&M$4)","v":{"v":0,"d":"€ 0.00"}},{"$f":"SUMIFS(GespecificeerdeKosten[Controleer bedrag],GespecificeerdeKosten[G/L-code],OverzichtMaandelijkseOnkosten[[#This Row],[G/L-code]],GespecificeerdeKosten[Factuurdatum:],\">=\"&N$3,GespecificeerdeKosten[Factuurdatum:],\"<=\"&N$4)+SUMIFS(Anders[Controleer bedrag],Anders[G/L-code],OverzichtMaandelijkseOnkosten[[#This Row],[G/L-code]],Anders[Aanvraag datumcontrole gestart],\">=\"&DATEVALUE(\" 1 \"&OverzichtMaandelijkseOnkosten[[#Headers],[November]]&_JAAR),Anders[Aanvraag datumcontrole gestart],\"<=\"&N$4)","v":{"v":0,"d":"€ 0.00"}},{"$f":"SUMIFS(GespecificeerdeKosten[Controleer bedrag],GespecificeerdeKosten[G/L-code],OverzichtMaandelijkseOnkosten[[#This Row],[G/L-code]],GespecificeerdeKosten[Factuurdatum:],\">=\"&O$3,GespecificeerdeKosten[Factuurdatum:],\"<=\"&O$4)+SUMIFS(Anders[Controleer bedrag],Anders[G/L-code],OverzichtMaandelijkseOnkosten[[#This Row],[G/L-code]],Anders[Aanvraag datumcontrole gestart],\">=\"&DATEVALUE(\" 1 \"&OverzichtMaandelijkseOnkosten[[#Headers],[December]]&_JAAR),Anders[Aanvraag datumcontrole gestart],\"<=\"&O$4)","v":{"v":0,"d":"€ 0.00"}},{"$f":"SUM(OverzichtMaandelijkseOnkosten[[#This Row],[Januari]:[December]])","v":{"v":0,"d":"€ 0.00"}}]
[null,"Totaal",null,{"$f":"SUBTOTAL(109,OverzichtMaandelijkseOnkosten[Januari])","v":{"v":0,"d":"€ 0.00"}},{"$f":"SUBTOTAL(109,OverzichtMaandelijkseOnkosten[Februari])","v":{"v":0,"d":"€ 0.00"}},{"$f":"SUBTOTAL(109,OverzichtMaandelijkseOnkosten[Maart])","v":{"v":0,"d":"€ 0.00"}},{"$f":"SUBTOTAL(109,OverzichtMaandelijkseOnkosten[April])","v":{"v":0,"d":"€ 0.00"}},{"$f":"SUBTOTAL(109,OverzichtMaandelijkseOnkosten[Mei])","v":{"v":0,"d":"€ 0.00"}},{"$f":"SUBTOTAL(109,OverzichtMaandelijkseOnkosten[Juni])","v":{"v":0,"d":"€ 0.00"}},{"$f":"SUBTOTAL(109,OverzichtMaandelijkseOnkosten[Juli])","v":{"v":0,"d":"€ 0.00"}},{"$f":"SUBTOTAL(109,OverzichtMaandelijkseOnkosten[Augustus])","v":{"v":0,"d":"€ 0.00"}},{"$f":"SUBTOTAL(109,OverzichtMaandelijkseOnkosten[September])","v":{"v":0,"d":"€ 0.00"}},{"$f":"SUBTOTAL(109,OverzichtMaandelijkseOnkosten[Oktober])","v":{"v":0,"d":"€ 0.00"}},{"$f":"SUBTOTAL(109,OverzichtMaandelijkseOnkosten[November])","v":{"v":0,"d":"€ 0.00"}},{"$f":"SUBTOTAL(109,OverzichtMaandelijkseOnkosten[December])","v":{"v":0,"d":"€ 0.00"}},{"$f":"SUBTOTAL(109,OverzichtMaandelijkseOnkosten[Totaal])","v":{"v":0,"d":"€ 0.00"}}]

{"sheet":"GESPECIFICEERDE KOSTEN","index":2,"n_rows":6,"n_cols":10,"rows_kept":6,"merged":[[1,1,1,9],[2,1,2,5],[2,6,2,9]]}
[]
[null,"GESPECIFICEERDE KOSTEN"]
[]
[null,"G/L-code","Factuurdatum:","Factuurnr.","Aangevraagd door","Controleer bedrag","Begunstigde","Selecteer gebruik","Distributiewijze","Bestandsdatum"]
[null,1000,"Datum",100,"Andy Teal",{"v":750.75,"d":"€ 750.75"},"Intertelecom ","E-mailprogramma","E-mail","Datum"]
[null,7000,"Datum",101,"Robert Walters",{"v":2500,"d":"€ 2,500.00"},"A. Datum bedrijf ","2 pc 's","Krediet","Datum"]

{"sheet":"LIEFDADIGHEID EN SPONSORS","index":3,"n_rows":6,"n_cols":12,"rows_kept":6,"merged":[[1,1,1,11],[2,1,2,5],[2,6,2,11]]}
[]
[null,"LIEFDADIGHEID EN SPONSORS"]
[]
[null,"G/L-code","Aanvraag datumcontrole gestart","Aangevraagd door","Controleer bedrag","Bijdrage vorig jaar","Begunstigde","Gebruikt voor","Afgetekend door","Categorie","Distributiewijze","Bestandsdatum"]
[null,12000,"Datum","Susan W. Eaton",{"v":1000,"d":"€ 1,000.00"},{"v":12,"d":"€ 12.00"},"De kunstacademie ","Beurzen","Kim Ralls","Kunst","Controleren","Datum"]
[null,11000,"Datum","Susan W. Eaton",{"v":2500,"d":"€ 2,500.00"},{"v":0,"d":"€ 0.00"},"WingTip Toys ","Community","Kathie Flood","Community","Controleren","Datum"]